{"text_format":"3","workbook":"xlsx","n_sheets":25,"sheets":["Список компаний","param","Жадваллар рўйхати","Список","1945_1_ru","1945_3_ru","Жадваллар","1806_1_uz","1806_2_uz","1806_3_uz","1806_4_uz","1806_5_uz","1806_6_uz","1882_1_uz","1882_2_uz","1882_3_uz","1882_4_uz","1882_5_uz","1945_1_uz","1945_2_uz","1945_3_uz","1945_4_uz","1945_5_uz","1945_6_uz","1945_7_uz"],"not_rendered":{"macros":1},"read":"whole","date_system":"1900"}

{"sheet":"Список компаний","index":0,"n_rows":42,"n_cols":6,"rows_kept":42,"hidden":true}
["---------------------"]
["\"Узбекинвест\" НКЭИС","0001",null,2021,{"$f":"\"31.03.\"&#REF!","v":{"$error":"#REF!"}},{"$f":"\"03\"","v":"03"}]
[" \"Узагросугурта\" АО","0002",null,2022,{"$f":"\"30.06.\"&#REF!","v":{"$error":"#REF!"}},{"$f":"\"06\"","v":"06"}]
["\"Кафолат\" АО","0003",null,2023,{"$f":"\"30.09.\"&#REF!","v":{"$error":"#REF!"}},{"$f":"\"09\"","v":"09"}]
["“Alfa Invest” ООО","0004",null,2024,{"$f":"\"31.12.\"&#REF!","v":{"$error":"#REF!"}},{"$f":"\"12\"","v":"12"}]
["“Alskom” АО","0005",null,2025]
["“Asia Inshurance” ООО","0006"]
["“Asko – Vostok” ООО","0007"]
["“Apex Insurance” ООО","0008"]
["“DD General Insurance” ООО","0009"]
["“Euroasia Insurance” СП ООО","0010"]
["“Garant Insurance Group” OOO","0011"]
["“Global Insurance Group” OOO","0012"]
["“GROSS Insurance” ООО","0013"]
["“Hamkor Sug’urta” ООО","0014"]
["«Imkon-Sug’urta» ООО","0015"]
["“INGO Uzbekistan” САО","0016"]
["“ISHONCH” МСК ООО","0017"]
["“Kafil Sug’urta” ООО","0018"]
["“Kapital Sug'urta” АО","0019"]
["“MY Insurance” OOO","0020"]
["“Omad Sug’urta” ООО","0021"]
["“PSB Insurance” OOO","0022"]
["“Perfect Insurance” ООО","0023"]
["“Inson” OOO","0024"]
["“Temiryo’l-Sug’urta” ООО","0025"]
["“Unipolis” ООО","0026"]
["“Universal Sug’urta” АО","0027"]
["“Xalq Sug’urta” ООО","0028"]
["\"Agros Hayot\" ООО","0029"]
["\"Аlfa Life\" ДХО","0030"]
["\"Alskom-Vita \" ООО","0031"]
["\"Apex Life\" ООО","0032"]
["\"Euroasia Life\" ООО","0033"]
["\"Kafolat Hayot\" ООО","0034"]
["\"New Life Insurance\" ООО","0035"]
["\"O’zbekinvest Hayot\" ООО","0036"]
["“Aria Insurance” ООО","0037"]
["“Semurg’ Insurance” СП ООО","0038"]
["“Sharq sug’urta” ООО","0039"]
["“Trust Insurance” ООО","0040"]
["“Azimuth Insurance Company” ООО","0041"]

{"sheet":"param","index":1,"n_rows":29,"n_cols":2,"rows_kept":29,"hidden":true}
["1806_4_uz"]
[{"$f":"MAX('1806_4_uz'!B:B)","v":30},"max"]
[{"$f":"\"C\"&(A2+8)&\":F\"&(A2+8)","v":"C38:F38"},"delete_line"]
[{"$f":"\"B\"&(A2+8)","v":"B38"},"copy_line"]
[]
["1806_5_uz"]
[{"$f":"MAX('1806_5_uz'!B:B)","v":30},"max"]
[{"$f":"\"C\"&(A7+8)&\":H\"&(A7+8)","v":"C38:H38"},"delete_line"]
[{"$f":"\"B\"&(A7+8)","v":"B38"},"copy_line"]
[]
["1806_6_uz"]
[{"$f":"MAX('1806_6_uz'!B:B)","v":30},"max"]
[{"$f":"\"C\"&(A12+15)&\":H\"&(A12+15)","v":"C45:H45"},"delete_line"]
[{"$f":"\"B\"&(A12+15)","v":"B45"},"copy_line"]
[]
["1806_4_ru"]
[{"$f":"MAX(#REF!)","v":{"$error":"#REF!"}},"max"]
[{"$f":"\"C\"&(A17+8)&\":F\"&(A17+8)","v":{"$error":"#REF!"}},"delete_line"]
[{"$f":"\"B\"&(A17+8)","v":{"$error":"#REF!"}},"copy_line"]
[]
["1806_5_ru"]
[{"$f":"MAX(#REF!)","v":{"$error":"#REF!"}},"max"]
[{"$f":"\"C\"&(A22+8)&\":H\"&(A22+8)","v":{"$error":"#REF!"}},"delete_line"]
[{"$f":"\"B\"&(A22+8)","v":{"$error":"#REF!"}},"copy_line"]
[]
["1806_6_ru"]
[{"$f":"MAX(#REF!)","v":{"$error":"#REF!"}},"max"]
[{"$f":"\"C\"&(A27+15)&\":H\"&(A27+15)","v":{"$error":"#REF!"}},"delete_line"]
[{"$f":"\"B\"&(A27+15)","v":{"$error":"#REF!"}},"copy_line"]

{"sheet":"Жадваллар рўйхати","index":2,"n_rows":42,"n_cols":6,"rows_kept":42,"hidden":true,"merged":[[0,0,1,17],[5,5,5,16],[7,5,7,16],[9,5,9,16],[11,5,11,16],[13,5,13,16],[15,5,15,16],[18,5,18,16],[20,5,20,16],[22,5,22,16],[24,5,24,16],[26,5,26,16],[28,4,28,16],[29,5,29,16],[31,5,31,16],[33,5,33,16],[35,5,35,16],[37,5,37,16],[39,5,39,16],[41,5,41,16]]}
["Жадваллар рўйхати"]
[]
[]
[]
[null,null,1806,null,"Суғурталовчилар ва қайта суғурталовчиларнинг тўлов қобилияти тўғрисидаги низом"]
[{"$nulls":4},"1806_1","Умумий суғурта соҳасида ёки фақат қайта суғурта қилиш фаолиятини амалга оширадиган суғурталовчининг тўлов қобилияти маржасининг етарлилиги нормативи ҳисоб-китоби"]
[]
[{"$nulls":4},"1806_2","Ҳаётни суғурта қилиш соҳасида суғурта фаолиятини амалга оширадиган суғурталовчининг тўлов қобилияти маржасининг етарлилиги нормативи ҳисоб-китоби"]
[]
[{"$nulls":4},"1806_3","Суғурталовчи/қайта суғурталовчининг алоҳида таваккалчиликлар бўйича мажбуриятларнинг йўл қўйиладиган энг кўп миқдори ва мажбуриятлар жамининг йўл қўйиладиган энг кўп миқдори нормативларига риоя қилганлиги ҳамда суғурталовчи (қайта суғурталовчи) активларини жойлаштиришга оид талабларга риоя қилинганлиги тўғрисида маълумотлар"]
[]
[{"$nulls":4},"1806_4","Суғурталовчи/қайта суғурталовчининг ҳар қандай битта юридик шахснинг устав капиталида иштирок этиш улуши ҳисоб-китоби"]
[]
[{"$nulls":4},"1806_5","Суғурталовчи/қайта суғурталовчининг битта боғлиқ шахс ёки барча боғлиқ шахсларда жойлаштирилган активлари суммаси ҳисоб-китоби"]
[]
[{"$nulls":4},"1806_6","Суғурталовчи/қайта суғурталовчининг қайта суғурта қилиш операцияларига оид талабларга риоя қилганлиги тўғрисида маълумотлар"]
[]
[null,null,1882,null,"Суғурталовчиларнинг суғурта захиралари тўғрисидаги низом"]
[{"$nulls":4},"1882_1","Транспорт воситалари эгаларининг фуқаролик жавобгарлигини мажбурий суғурта қилиш бўйича барқарорлаштириш захирасини ҳисоблаш мақсадида даромадлар, харажатлар ва молиявий натижаларнинг ҳисоб-китоби"]
[]
[{"$nulls":4},"1882_2","Иш берувчининг фуқаролик жавобгарлигини мажбурий суғурта қилиш бўйича барқарорлаштириш захирасини ҳисоблаш мақсадида даромадлар, харажатлар ва молиявий натижаларнинг ҳисоб-китоби"]
[]
[{"$nulls":4},"1882_3","Ташувчининг фуқаролик жавобгарлигини мажбурий суғурта қилиш бўйича барқарорлаштириш захирасини ҳисоблаш мақсадида даромадлар, харажатлар ва молиявий натижаларнинг ҳисоб-китоби"]
[]
[{"$nulls":4},"1882_4","Суғурта захираларининг умумий миқдори"]
[]
[{"$nulls":4},"1882_5","Активлар таркиби тўғрисида маълумот"]
[]
[null,null,1945,null,"Суғурталовчиларнинг молиявий ҳисобот шаклларини ва уларни тўлдириш бўйича қоидаларни \nтасдиқлаш тўғрисидаги Молия вазирлиги буйруғи"]
[{"$nulls":4},"1945_1","Бухгалтерия баланси — 1-сонли шакл — суғурта"]
[]
[{"$nulls":4},"1945_2","Балансдан ташқари счётларда ҳисобга олинадиган қийматликларнинг мавжудлиги тўғрисида маълумотнома"]
[]
[{"$nulls":4},"1945_3","Молиявий натижалар тўғрисидаги ҳисобот — 2-сонли шакл — суғурта"]
[]
[{"$nulls":4},"1945_4","Бюджетга тўловлар тўғрисида маълумотнома"]
[]
[{"$nulls":4},"1945_5","Пул оқимлари тўғрисидаги ҳисобот — 4-сонли шакл — суғурта"]
[]
[{"$nulls":4},"1945_6","Чет эл валютасидаги пул маблағларининг ҳаракати тўғрисида маълумотнома"]
[]
[{"$nulls":4},"1945_7","Хусусий капитал тўғрисидаги ҳисобот — 5-сонли шакл — суғурта"]

{"sheet":"Список","index":3,"n_rows":19,"n_cols":5,"rows_kept":19,"hidden":true}
["Код приложения","Регистрационный номер документа","Наименование документа","Номер приложения","Наименование приложения"]
[{"$f":"B2&\"_\"&D2","v":"1806_1"},1806,"Положение о платежеспособности страховщиков и перестраховщиков",1,"Расчет норматива достаточности маржи платежеспособности страховщика, осуществляющего деятельность в отрасли общего страхования (исключительно по перестрахованию)"]
["1806_2",1806,"Положение о платежеспособности страховщиков и перестраховщиков",2,"Расчет норматива достаточности маржи платежеспособности страховщика, осуществляющего деятельность в отрасли страхования жизни"]
["1806_3",1806,"Положение о платежеспособности страховщиков и перестраховщиков",3,"Сведения о соблюдении требований по предельно допустимому размеру обязательств по отдельным рискам и совокупному размеру обязательств страховщика (перестраховщика) и размещению активов страховщика (перестраховщика)"]
["1806_4",1806,"Положение о платежеспособности страховщиков и перестраховщиков",4,"Расчет по долевому участию в уставном капитале любого одного юридического лица"]
["1806_5",1806,"Положение о платежеспособности страховщиков и перестраховщиков",5,"Расчет по сумме активов, размещенных у одного связанного лица или у всех связанных лиц страховщика/перестраховщика"]
["1806_6",1806,"Положение о платежеспособности страховщиков и перестраховщиков",6,"Сведения о соблюдении требований по перестраховочным операциям страховщика/перестраховщика"]
["1882_1",1882,"Положение о страховых резервах страховщиков",1,"Расчет доходов, расходов и финансового результата для целей расчета стабилизационного резерва по обязательному страхованию гражданской ответственности владельцев транспортных средств"]
["1882_2",1882,"Положение о страховых резервах страховщиков",2,"Расчет доходов, расходов и финансового результата для целей расчета стабилизационного резерва по обязательному страхованию гражданской ответственности работодателя"]
["1882_3",1882,"Положение о страховых резервах страховщиков",3,"Расчет доходов, расходов и финансового результата для целей расчета стабилизационного резерва по обязательному страхованию гражданской ответственности перевозчика"]
["1882_4",1882,"Положение о страховых резервах страховщиков",4,"Общая величина страховых резервов "]
["1882_5",1882,"Положение о страховых резервах страховщиков",5,"Сведения о сотаве активов"]
["1945_1",1945,"Формы финансовой отчетности страховщиков и правила по их заполнению",1,"Бухгалтерский баланс — форма № 1 — страхование"]
["1945_2",1945,"Формы финансовой отчетности страховщиков и правила по их заполнению",2,"Справка о наличии ценностей, учитываемых на забалансовых счетах"]
["1945_3",1945,"Формы финансовой отчетности страховщиков и правила по их заполнению",3,"Отчет о финансовых результатах — форма № 2 — страхование"]
["1945_4",1945,"Формы финансовой отчетности страховщиков и правила по их заполнению",4,"Справка о платежах в бюджет"]
["1945_5",1945,"Формы финансовой отчетности страховщиков и правила по их заполнению",5,"Отчет о денежных потоках — форма № 4 — страхование"]
["1945_6",1945,"Формы финансовой отчетности страховщиков и правила по их заполнению",6,"Справка о движении денежных средств в иностранной валюте"]
["1945_7",1945,"Формы финансовой отчетности страховщиков и правила по их заполнению",7,"Отчет о собственном капитале — форма № 5 — страхование"]

{"sheet":"1945_1_ru","index":4,"n_rows":146,"n_cols":8,"rows_kept":146,"merged":[[0,2,0,4],[1,2,1,4],[2,2,2,4],[3,2,3,4],[4,2,4,4],[6,1,6,3],[7,1,7,3],[8,1,8,3],[9,1,9,3],[10,1,10,3],[11,1,11,3],[12,1,12,3],[13,1,13,3],[14,1,14,3],[15,1,15,3],[16,1,16,3],[17,1,17,3],[18,1,18,3],[19,1,19,3],[20,1,20,3],[21,1,21,3],[22,1,22,3],[23,1,23,3],[24,1,24,3],[25,1,25,3],[26,1,26,3],[27,1,27,3],[28,1,28,3],[29,1,29,3],[30,1,30,3],[31,1,31,3],[32,1,32,3],[33,1,33,3],[34,1,34,3],[35,1,35,3],[36,1,36,3],[37,1,37,3],[38,1,38,3],[39,1,39,3],[40,1,40,3],[41,1,41,3],[42,1,42,3],[43,1,43,3],[44,1,44,3],[45,1,45,3],[46,1,46,3],[47,1,47,3],[48,1,48,3],[49,1,49,3],[50,1,50,3],[51,1,51,3],[52,1,52,3],[53,1,53,3],[54,1,54,3],[55,1,55,3],[56,1,56,3],[57,1,57,3],[58,1,58,3],[59,1,59,3],[60,1,60,3],[61,1,61,3],[62,1,62,3],[63,1,63,3],[64,1,64,3],[65,1,65,3],[66,1,66,3],[67,1,67,3],[68,1,68,3],[69,1,69,3],[70,1,70,3],[71,1,71,3],[72,1,72,3],[73,1,73,3],[74,1,74,3],[75,1,75,3],[76,1,76,3],[77,1,77,3],[78,1,78,3],[79,1,79,3],[80,1,80,3],[81,1,81,3],[82,1,82,3],[83,1,83,3],[84,1,84,3],[85,1,85,3],[86,1,86,3],[87,1,87,3],[88,1,88,3],[89,1,89,3],[90,1,90,3],[91,1,91,3],[92,1,92,3],[93,1,93,3],[94,1,94,3],[95,1,95,3],[96,1,96,3],[97,1,97,3],[98,1,98,3],[99,1,99,3],[100,1,100,3],[101,1,101,3],[102,1,102,3],[103,1,103,3],[104,1,104,3],[105,1,105,3],[106,1,106,3],[107,1,107,3],[108,1,108,3],[109,1,109,3],[110,1,110,3],[111,1,111,3],[112,1,112,3],[113,1,113,3],[114,1,114,3],[115,1,115,3],[116,1,116,3],[117,1,117,3],[118,1,118,3],[119,1,119,3],[120,1,120,3],[121,1,121,3],[122,1,122,3],[123,1,123,3],[124,1,124,3],[125,1,125,3],[126,1,126,3],[127,1,127,3],[128,1,128,3],[129,1,129,3],[130,1,130,3],[131,1,131,3],[132,1,132,3],[133,1,133,3],[134,1,134,3],[135,1,135,3],[136,1,136,3],[137,1,137,3],[138,1,138,3],[139,1,139,3],[140,1,140,3],[141,1,141,3],[142,1,142,3],[143,1,143,3],[145,1,147,6]]}
[null,"Рег. номер",{"$f":"VLOOKUP($C$5,Список!$A:$E,2,FALSE)","v":1945},null,null,"Список таблиц"]
[null,"Наим. док-та",{"$f":"VLOOKUP($C$5,Список!$A:$E,3,FALSE)","v":"Формы финансовой отчетности страховщиков и правила по их заполнению"}]
[null,"Номер прил-я",{"$f":"VLOOKUP($C$5,Список!$A:$E,4,FALSE)","v":1}]
[null,"Наим. прил-я",{"$f":"VLOOKUP($C$5,Список!$A:$E,5,FALSE)","v":"Бухгалтерский баланс — форма № 1 — страхование"}]
[null,"Код прил-я","1945_1"]
[]
[null,"Наименование показателей",null,null,"Код стр.","На начало отчетного периода","На конец отчетного периода"]
[null,"Актив"]
[null,"I. Долгосрочные активы"]
[null,"Основные средства:"]
[null,"Первоначальная (восстановительная) стоимость (0100, 0300)",null,null,10,{"v":15047957,"d":"15,047,957.00"},{"v":11007788,"d":"11,007,788.00"}]
[null,"Сумма износа (0200)",null,null,11,{"v":3325608,"d":"3,325,608.00"},{"v":3130598,"d":"3,130,598.00"}]
[null,"Остаточная (балансовая) стоимость (стр. 010 – 011)",null,null,12,{"$f":"F11-F12","v":{"v":11722349,"d":"11,722,349.00"}},{"$f":"G11-G12","v":{"v":7877190,"d":"7,877,190.00"}}]
[null,"Нематериальные активы:"]
[null,"Первоначальная стоимость (0400)",null,null,20,{"v":890,"d":"890.00"},{"v":890,"d":"890.00"}]
[null,"Сумма амортизации (0500)",null,null,21,{"v":890,"d":"890.00"},{"v":890,"d":"890.00"}]
[null,"Остаточная (балансовая) стоимость (стр. 020 – 021)",null,null,22,0,0]
[null,"Долгосрочные инвестиции, всего (стр.040+050+060+070+080), в том числе:",null,null,30,{"$f":"SUM(F19:F23)","v":{"v":3321386,"d":"3,321,386.00"}},{"$f":"SUM(G19:G23)","v":{"v":2566099,"d":"2,566,099.00"}}]
[null,"Ценные бумаги (0610)",null,null,40,{"v":1952014,"d":"1,952,014.00"},{"v":2513088,"d":"2,513,088.00"}]
[null,"Инвестиции в дочерние хозяйственные общества (0620)",null,null,50]
[null,"Инвестиции в зависимые хозяйственные общества (0630)",null,null,60]
[null,"Инвестиции в предприятия с иностранным капиталом (0640)",null,null,70]
[null,"Прочие долгосрочные инвестиции (0690)",null,null,80,{"v":1369372,"d":"1,369,372.00"},{"v":53011,"d":"53,011.00"}]
[null,"Оборудование к установке (0700)",null,null,90]
[null,"Капитальные вложения (0800)",null,null,100,{"v":35821,"d":"35,821.00"},0]
[null,"Долгосрочная дебиторская задолженность (0910, 0920, 0930, 0940)",null,null,110,{"v":8272836,"d":"8,272,836.00"},{"v":14310057,"d":"14,310,057.00"}]
[null,"Долгосрочные отсроченные расходы (0950, 0960, 0990)",null,null,120]
[null,"Итого по разделу I (стр. 012+022+030+090+100+110+120)",null,null,130,{"$f":"F13+F17+F18+F25+F26","v":{"v":23352392,"d":"23,352,392.00"}},{"$f":"G13+G17+G18+G26","v":{"v":24753346,"d":"24,753,346.00"}}]
[null,"II. Текущие активы"]
[null,"Товарно - материальные запасы, всего (стр.150+160), в том числе:",null,null,140,{"v":50317,"d":"50,317.00"},{"v":46984,"d":"46,984.00"}]
[null,"Материалы (1000, 1500, 1600)",null,null,150,{"v":50317,"d":"50,317.00"},{"v":46984,"d":"46,984.00"}]
[null,"Незавершенные услуги (2000, 2300, 2700)",null,null,160]
[null,"Расходы будущих периодов (3100)",null,null,170,{"v":1122,"d":"1,122.00"},{"v":14555,"d":"14,555.00"}]
[null,"Отсроченные расходы (3200)",null,null,180]
[null,"Дебиторы, всего (стр. 200 + 310 + 320 + 330 + 340 + 350 + 360 + 370 + 380 + 390)",null,null,190,{"v":468721,"d":"468,721.00"},{"v":555537,"d":"555,537.00"}]
[null,"из нее: просроченная*",null,null,191]
[null,"Счета к оплате, всего (стр. 210 + 220 – 400)",null,null,200,{"v":417843,"d":"417,843.00"},{"v":315238,"d":"315,238.00"}]
[null,"Задолженность покупателей и заказчиков (4010, 4020)",null,null,210,{"v":1930,"d":"1,930.00"},{"v":1930,"d":"1,930.00"}]
[null,"Дебиторы по страховым операциям, всего (стр. 230 + 240 + 250 + 260 + 270 + 280 + 290 + 300)",null,null,220,{"v":415913,"d":"415,913.00"},{"v":313308,"d":"313,308.00"},3]
[null,"Задолженность страхователей (4030)",null,null,230,{"v":415913,"d":"415,913.00"},{"v":313308,"d":"313,308.00"}]
[null,"Задолженность страховых агентов и брокеров (4040)",null,null,240,0]
[null,"Задолженность перестрахователей (4050)",null,null,250]
[null,"Задолженность перестраховщиков по комиссионным вознаграждениям, тантьемам и другим вознаграждениям (4051)",null,null,260]
[null,"Задолженность перестраховщиков (4060)",null,null,270]
[null,"Ссуды по страхованию жизни (4070)",null,null,280]
[null,"Депо убытков страховщика у других страховщиков (4080)",null,null,290]
[null,"Депо премий страховщика у других страховщиков (4090)",null,null,300]
[null,"Задолженность обособленных подразделений (4110)",null,null,310]
[null,"Задолженность дочерних и зависимых хозяйственных обществ (4120)",null,null,320]
[null,"Авансы, выданные персоналу (4200)",null,null,330,{"v":108,"d":"108.00"},{"v":108,"d":"108.00"}]
[null,"Авансы, выданные поставщикам и подрядчикам (4300)",null,null,340,{"v":34025,"d":"34,025.00"},{"v":73510,"d":"73,510.00"}]
[null,"Авансовые платежи в бюджет (4400)",null,null,350,null,{"v":166681,"d":"166,681.00"}]
[null,"Авансовые платежи в государственные целевые фонды и по страхованию (4500)",null,null,360,0,0]
[null,"Задолженность учредителей по вкладам в уставный капитал (4600)",null,null,370]
[null,"Задолженность персонала по прочим операциям (4700)",null,null,380]
[null,"Прочие дебиторские задолженности (4800)",null,null,390,{"v":16745,"d":"16,745.00"},0]
[null,"Резервы по сомнительным долгам (4900)",null,null,400]
[null,"Денежные средства, всего (стр. 420 + 430 + 440 + 450), в том числе:",null,null,410,{"$f":"F60+F61+F62","v":{"v":691312,"d":"691,312.00"}},{"$f":"G60+G61+G62","v":{"v":792949,"d":"792,949.00"}}]
[null,"Денежные средства в кассе (5000)",null,null,420]
[null,"Денежные средства на расчетном счете (5100)",null,null,430,{"v":562711,"d":"562,711.00"},{"v":778148,"d":"778,148.00"}]
[null,"Денежные средства в иностранной валюте (5200)",null,null,440,{"v":122925,"d":"122,925.00"},{"v":4641,"d":"4,641.00"}]
[null,"Прочие денежные средства и эквиваленты (5500, 5600, 5700)",null,null,450,{"v":5676,"d":"5,676.00"},{"v":10160,"d":"10,160.00"}]
[null,"Краткосрочные инвестиции (5800)",null,null,460,0]
[null,"Прочие текущие активы (5900)",null,null,470]
[null,"Итого по разделу II (стр. 140 + 170 + 180 + 190 + 410 + 460 + 470)",null,null,480,{"v":1211472,"d":"1,211,472.00"},{"$f":"G30+G33+G35+G58","v":{"v":1410025,"d":"1,410,025.00"}}]
[null,"Всего по активу баланса (стр.130 + 480)",null,null,490,{"v":24563864,"d":"24,563,864.00"},{"$f":"G28+G65","v":{"v":26163371,"d":"26,163,371.00"}}]
[null,"Пассив"]
[null,"I. Источники собственных средств "]
[null,"Уставный капитал (8300) ",null,null,500,{"v":15000471,"d":"15,000,471.00"},{"v":20000000,"d":"20,000,000.00"}]
[null,"Добавленный капитал (8400) ",null,null,510]
[null,"Резервный капитал (8500) ",null,null,520,{"v":2690422,"d":"2,690,422.00"},{"v":2690141,"d":"2,690,141.00"}]
[null,"Выкупленные собственные акции (8600) ",null,null,530]
[null,"Нераспределенная прибыль (непокрытый убыток) (8700) ",null,null,540,{"v":3111501,"d":"3,111,501.00"},{"v":8365,"d":"8,365.00"}]
[null,"Целевые поступления (8800) ",null,null,550]
[null,"Резервы предстоящих расходов и платежей (8900) ",null,null,560]
[null,"Итого по разделу I (стр. 500 + 510 + 520 – 530 + 540 + 550 + 560) ",null,null,570,{"v":20802394,"d":"20,802,394.00"},{"$f":"SUM(G69:G74)","v":{"v":22698506,"d":"22,698,506.00"}}]
[null,"II. Страховые резервы "]
[null,"Страховые резервы, всего (стр. 590 + 600 + 610 + 620 + 630 + 640 + 650 + 660) ",null,null,580,{"v":3040906,"d":"3,040,906.00"},{"v":1444446,"d":"1,444,446.00"}]
[null,"Резерв незаработанной премии (8010) ",null,null,590,{"v":2819556,"d":"2,819,556.00"},{"v":1211083,"d":"1,211,083.00"}]
[null,"Резерв произошедших, но не заявленных убытков (8020) ",null,null,600,{"v":221350,"d":"221,350.00"},{"v":233363,"d":"233,363.00"}]
[null,"Резерв заявленных, но неурегулированных убытков (8030) ",null,null,610]
[null,"Резерв предупредительных мероприятий (8040) ",null,null,620]
[null,"Резерв несоответствия активов (8050) ",null,null,630]
[null,"Резерв катастроф (8060) ",null,null,640]
[null,"Резерв колебания убыточности (8070) ",null,null,650]
[null,"Резервы по страхованию жизни (8090) ",null,null,660]
[null,"Доля перестраховщиков в страховых резервах, всего (стр. 680 + 690 + 700 + 710) ",null,null,670,{"v":2048224,"d":"2,048,224.00"},{"v":585185,"d":"585,185.00"}]
[null,"Доля перестраховщиков в резерве незаработанной премии (8110) ",null,null,680,{"v":1838053,"d":"1,838,053.00"},{"v":375452,"d":"375,452.00"}]
[null,"Доля перестраховщиков в резерве заявленных, но неурегулированных убытков (8120) ",null,null,690]
[null,"Доля перестраховщиков в резерве произошедших, но не заявленных убытков (8130) ",null,null,700,{"v":210171,"d":"210,171.00"},{"v":209733,"d":"209,733.00"}]
[null,"Доля перестраховщиков в резервах по страхованию жизни (8140) ",null,null,710]
[null,"Итого по разделу II (стр.580 – 670) ",null,null,720,{"v":992682,"d":"992,682.00"},{"$f":"G78-G87","v":{"v":859261,"d":"859,261.00"}}]
[null,"III. Обязательства"]
[null,"Долгосрочные обязательства, всего (стр. 740 + 750 + 850 + 860 + 870 + 880 + 890 + 900 + 910 + 920) ",null,null,730,{"v":2500000,"d":"2,500,000.00"},{"v":2500000,"d":"2,500,000.00"}]
[null,"в том числе: долгосрочная кредиторская задолженность (стр. 740 + 760 + 770 + 780 + 790 + 800 + 820 + 830 + 850 + 870 + 890 + 920) ",null,null,731]
[null,"Долгосрочная задолженость поставщикам и подрядчикам (7010, 7020) ",null,null,740]
[null,"Долгосрочные обязательства по страховым операциям, всего (стр. 760 + 770 + 780 + 790 + 800 + 810 + 820 + 830) ",null,null,750]
[null,"Долгосрочная задолженность подрядчикам, осуществляющим предупредительные мероприятия (7011) ",null,null,760]
[null,"Долгосрочная задолженность страхователям (7030) ",null,null,770]
[null,"Долгосрочная задолженность страховым агентам и брокерам (7040) ",null,null,780]
[null,"Долгосрочная задолженность перестрахователям (7050) ",null,null,790]
[null,"Долгосрочная задолженность перестраховщикам (7060) ",null,null,800]
[null,"Депо премии перестраховщиков (7070) ",null,null,810]
[null,"Долгосрочная задолженность перестрахователям по комиссионным вознаграждениям, тантьемам и другим вознаграждениям (7080) ",null,null,820]
[null,"Долгосрочная задолженность актуариям, аджастерам, сюрвейерам и ассистансам (7090) ",null,null,830]
[null,"Долгосрочная задолженность обособленным подразделениям (7110) ",null,null,840]
[null,"Долгосрочная задолженность дочерним и зависимым хозяйственным обществам (7120) ",null,null,850]
[null,"Долгосрочные отсроченные доходы (7210, 7220, 7230) ",null,null,860]
[null,"Долгосрочные отсроченные обязательства по налогам и другим обязательным платежам (7240) ",null,null,870]
[null,"Прочие долгосрочные отсроченные обязательства (7250, 7290) ",null,null,880]
[null,"Авансы, полученные от покупателей и заказчиков (7300) ",null,null,890]
[null,"Долгосрочные банковские кредиты (7810) ",null,null,900]
[null,"Долгосрочные займы (7820, 7830, 7840) ",null,null,910,{"v":2500000,"d":"2,500,000.00"},{"v":2500000,"d":"2,500,000.00"}]
[null,"Прочие долгосрочные кредиторские задолженности (7900) ",null,null,920]
[null,"Текущие обязательства, всего (стр. 940 + 950 + 1050 + 1060 + 1070 + 1080 + 1090 + 1100 + 1110 + 1120 + + 1130 + 1140 + 1150 + 1160 + 1170 + 1180) ",null,null,930,{"v":268788,"d":"268,788.00"},{"$f":"G116","v":{"v":105604,"d":"105,604.00"}}]
[null,"в том числе: текущая кредиторская задолженность (стр. 940 + 960 + 970 + 980 + 990 + 1000 + 1020 + 1030 + 1050 + 1070 + 1090 + 1100 + 1110 + 1120 + 1130 + 1140 + 1180) ",null,null,931,{"v":268788,"d":"268,788.00"},{"$f":"G118+G119+G133+G134+G136+G137+G138+G142","v":{"v":105604,"d":"105,604.00"}}]
[null,"из нее: просроченная текущая кредиторская задолженность*",null,null,932]
[null,"Задолженность поставщикам и подрядчикам (6010, 6020) ",null,null,940,{"v":117737,"d":"117,737.00"},{"v":49790,"d":"49,790.00"}]
[null,"Обязательства по страховым операциям, всего (стр. 960 + 970 + 980 + 990 + 1000 + 1010 + 1020 + 1030) ",null,null,950,{"v":35800,"d":"35,800.00"},{"$f":"SUM(G120:G129)","v":{"v":5657,"d":"5,657.00"}}]
[null,"Задолженность подрядчикам, осуществляющим предупредительные мероприятия (6011) ",null,null,960]
[null,"Задолженность страхователям (6030) ",null,null,970,{"v":30719,"d":"30,719.00"},{"v":5657,"d":"5,657.00"}]
[null,"Задолженность страховым агентам и брокерам (6040) ",null,null,980,{"v":3862,"d":"3,862.00"},0]
[null,"Задолженность перестрахователям (6050) ",null,null,990]
[null,"Задолженность перестраховщикам (6060) ",null,null,1000,{"v":1219,"d":"1,219.00"},0]
[null,"Депо премии перестраховщиков (6070) ",null,null,1010]
[null,"Задолженность перестрахователям по комиссионным вознаграждениям, тантьемам и другим вознаграждениям (6080) ",null,null,1020]
[null,"Задолженность актуариям, аджастерам, сюрвейерам и ассистансам (6090) ",null,null,1030]
[null,"Задолженность обособленным подразделениям (6110) ",null,null,1040]
[null,"Задолженность дочерним и зависимым хозяйственным обществам (6120) ",null,null,1050]
[null,"Отсроченные доходы (6210, 6220, 6230) ",null,null,1060]
[null,"Отсроченные обязательства по налогам и другим обязательным платежам (6240) ",null,null,1070]
[null,"Прочие отсроченные обязательства (6250, 6290) ",null,null,1080]
[null,"Полученные авансы (6300) ",null,null,1090,{"v":7076,"d":"7,076.00"},{"v":5440,"d":"5,440.00"}]
[null,"Задолженность по платежам в бюджет (6400) ",null,null,1100,{"v":46447,"d":"46,447.00"},0]
[null,"Задолженность по страхованию (6510) ",null,null,1110]
[null,"Задолженность по платежам в государственные целевые фонды (6520) ",null,null,1120,{"v":9902,"d":"9,902.00"},{"v":1528,"d":"1,528.00"}]
[null,"Задолженность учредителям (6600) ",null,null,1130,{"v":104,"d":"104.00"},{"v":575,"d":"575.00"}]
[null,"Задолженность по оплате труда (6700) ",null,null,1140,{"v":48178,"d":"48,178.00"},{"v":39070,"d":"39,070.00"}]
[null,"Краткосрочные банковские кредиты (6810) ",null,null,1150]
[null,"Краткосрочные займы (6820, 6830, 6840) ",null,null,1160]
[null,"Текущая часть долгосрочных обязательств (6950) ",null,null,1170]
[null,"Прочие кредиторские задолженности (6900 кроме 6950) ",null,null,1180,{"v":3544,"d":"3,544.00"},{"v":3544,"d":"3,544.00"}]
[null,"Итого по разделу III (стр.730 + 930) ",null,null,1190,{"v":2768788,"d":"2,768,788.00"},{"$f":"G94+G115","v":{"v":2605604,"d":"2,605,604.00"}}]
[null,"Всего по пассиву баланса (стр. 570 + 720 + 1190) ",null,null,1200,{"v":24563864,"d":"24,563,864.00"},{"$f":"G76+G92+G143","v":{"v":26163371,"d":"26,163,371.00"}}]
[]
[null,"* При наличии просроченной дебиторской и кредиторской задолженности их расшифровка приводится согласно приложению к Бухгалтерскому балансу — форма № 1 — страхование."]

{"sheet":"1945_3_ru","index":5,"n_rows":49,"n_cols":9,"rows_kept":49,"merged":[[0,2,0,4],[1,2,1,4],[2,2,2,4],[3,2,3,4],[4,2,4,4],[6,1,7,3],[6,4,7,4],[6,5,6,6],[6,7,6,8],[8,1,8,3],[9,1,9,3],[10,1,10,3],[11,1,11,3],[12,1,12,3],[13,1,13,3],[14,1,14,3],[15,1,15,3],[16,1,16,3],[17,1,17,3],[18,1,18,3],[19,1,19,3],[20,1,20,3],[21,1,21,3],[22,1,22,3],[23,1,23,3],[24,1,24,3],[25,1,25,3],[26,1,26,3],[27,1,27,3],[28,1,28,3],[29,1,29,3],[30,1,30,3],[31,1,31,3],[32,1,32,3],[33,1,33,3],[34,1,34,3],[35,1,35,3],[36,1,36,3],[37,1,37,3],[38,1,38,3],[39,1,39,3],[40,1,40,3],[41,1,41,3],[42,1,42,3],[43,1,43,3],[44,1,44,3],[45,1,45,3],[46,1,46,3],[47,1,47,3],[48,1,48,3]]}
[null,"Рег. номер",{"$f":"VLOOKUP($C$5,Список!$A:$E,2,FALSE)","v":1945},null,null,"Список таблиц"]
[null,"Наим. док-та",{"$f":"VLOOKUP($C$5,Список!$A:$E,3,FALSE)","v":"Формы финансовой отчетности страховщиков и правила по их заполнению"}]
[null,"Номер прил-я",{"$f":"VLOOKUP($C$5,Список!$A:$E,4,FALSE)","v":3}]
[null,"Наим. прил-я",{"$f":"VLOOKUP($C$5,Список!$A:$E,5,FALSE)","v":"Отчет о финансовых результатах — форма № 2 — страхование"}]
[null,"Код прил-я","1945_3"]
[]
[null,"Наименование показателей",null,null,"Код строки","За соответствующий период прошлого года",null,"За отчетный период"]
[{"$nulls":5},"Доходы (прибыль) ","Расходы (убытки) ","Доходы (прибыль) ","Расходы (убытки) "]
[null,"Доходы от оказания страховых услуг, (стр. 011 – 012 + 013 + / – 014 + / – 015 + / – 016 + / – 017 + / – 018 + 019), в том числе:",null,null,10,{"$f":"F10-G11+F13+F15","v":{"v":1647489,"d":"1,647,489.00"}},null,{"$f":"H10-I11+H13-I15","v":{"v":925738,"d":"925,738.00"}}]
[null,"Страховые премии по прямому страхованию и сострахованию (в части доли страховщика, установленной в договоре сострахования) ",null,null,11,{"v":2034329,"d":"2,034,329.00"},null,{"v":793013,"d":"793,013.00"}]
[null,"Страховые премии по договорам, переданным в перестрахование ",null,null,12,null,{"v":1331608,"d":"1,331,608.00"},null,{"v":696,"d":"696.00"}]
[null,"Страховые премии по договорам, принятым в перестрахование ",null,null,13]
[null,"Результат изменения резерва незаработанной премии, скорректированный на долю перестраховщиков в резерве незаработанной премии ",null,null,14,{"v":678933,"d":"678,933.00"},0,{"v":145872,"d":"145,872.00"}]
[null,"Результат изменения резерва заявленных, но не урегулированных убытков, скорректированный на долю перестраховщиков в резерве заявленных, но не урегулированных убытков ",null,null,15]
[null,"Результат изменения резерва произошедших, но не заявленных убытков, скорректированный на долю перестраховщиков в резерве произошедших, но не заявленных убытков ",null,null,16,{"v":265835,"d":"265,835.00"},null,0,{"v":12451,"d":"12,451.00"}]
[null,"Результат изменения резервов по страхованию жизни, скорректированный на долю перестраховщиков в резервах по страхованию жизни ",null,null,17]
[null,"Результат изменения других технических резервов, скорректированный на долю перестраховщиков в соответствующих резервах ",null,null,18]
[null,"Другие доходы от оказания страховых услуг ",null,null,19,0,null,0]
[null,"Доходы от оказания услуг посредника ",null,null,20]
[null,"Доходы по возмещениям доли убытков по перестрахованию ",null,null,30]
[null,"Доходы по комиссионным вознаграждениям, тантьемам и сборам по перестрахованию ",null,null,40]
[null,"Доходы от оказания услуг сюрвейера и аджастера ",null,null,50]
[null,"Чистая выручка от оказания страховых услуг (стр. 010 + 020 + 030 + 040 + 050) ",null,null,60,{"$f":"F9","v":{"v":1647489,"d":"1,647,489.00"}},null,{"$f":"H9","v":{"v":925738,"d":"925,738.00"}}]
[null,"Себестоимость оказанных страховых услуг ",null,null,70,null,{"v":382992,"d":"382,992.00"},null,{"v":192194,"d":"192,194.00"}]
[null,"Валовая прибыль (убыток) от оказания страховых услуг (стр.060 – 070) ",null,null,80,{"$f":"F23-G24","v":{"v":1264497,"d":"1,264,497.00"}},null,{"$f":"H23-I24","v":{"v":733544,"d":"733,544.00"}}]
[null,"Расходы периода, всего (стр.100 + 110 + 120 + 130), в том числе: ",null,null,90,null,{"$f":"SUM(G27:G29)","v":{"v":1366941,"d":"1,366,941.00"}},null,{"v":1202114,"d":"1,202,114.00"}]
[null,"Расходы по реализации ",null,null,100,null,{"v":12327,"d":"12,327.00"},null,{"v":3172,"d":"3,172.00"}]
[null,"Административные расходы ",null,null,110,null,{"v":1283622,"d":"1,283,622.00"},null,{"v":1155443,"d":"1,155,443.00"}]
[null,"Прочие операционные расходы ",null,null,120,null,{"v":70992,"d":"70,992.00"},null,{"v":43499,"d":"43,499.00"}]
[null,"Расходы отчетного периода, исключаемые из налогооблагаемой базы в будущем ",null,null,130]
[null,"Прочие доходы от основной деятельности ",null,null,140,{"v":919634,"d":"919,634.00"},null,{"v":638803,"d":"638,803.00"}]
[null,"Прибыль (убыток) от основной деятельности (стр. 080 – 090 + 140) ",null,null,150,{"$f":"F25-G26+F31","v":{"v":817190,"d":"817,190.00"}},null,{"$f":"H25-I26+H31","v":{"v":170233,"d":"170,233.00"}}]
[null,"Доходы от финансовой деятельности, всего (стр.170 + 180 + 190 + 200 + 210), в том числе: ",null,null,160,{"$f":"SUM(F34:F38)","v":{"v":103308,"d":"103,308.00"}},null,{"$f":"SUM(H34:H37)","v":{"v":88378,"d":"88,378.00"}}]
[null,"Доходы в виде дивидендов ",null,null,170,{"v":5,"d":"5.00"},null,0]
[null,"Доходы в виде процентов ",null,null,180,{"v":93752,"d":"93,752.00"},null,{"v":22904,"d":"22,904.00"}]
[null,"Доходы от долгосрочной аренды (лизинга) ",null,null,190]
[null,"Доходы от валютных курсовых разниц ",null,null,200,{"v":9551,"d":"9,551.00"},null,{"v":65474,"d":"65,474.00"}]
[null,"Прочие доходы от финансовой деятельности ",null,null,210,0]
[null,"Расходы по финансовой деятельности, всего (стр.230 + 240 + 250 + 260), в том числе: ",null,null,220,null,{"$f":"G42","v":{"v":26136,"d":"26,136.00"}},null,{"v":246843,"d":"246,843.00"}]
[null,"Расходы в виде процентов ",null,null,230,{"$nulls":3},{"v":230137,"d":"230,137.00"}]
[null,"Расходы в виде процентов по долгосрочной аренде (лизингу) ",null,null,240]
[null,"Убытки от валютных курсовых разниц ",null,null,250,null,{"v":26136,"d":"26,136.00"},null,{"v":16703,"d":"16,703.00"}]
[null,"Прочие расходы по финансовой деятельности ",null,null,260,{"$nulls":3},{"v":3,"d":"3.00"}]
[null,"Прибыль (убыток) от общехозяйственной деятельности (стр. 150 + 160 – 220) ",null,null,270,{"$f":"F32+F33-G39","v":{"v":894362,"d":"894,362.00"}},null,{"$f":"H32+H33-I39","v":{"v":11768,"d":"11,768.00"}}]
[null,"Чрезвычайные прибыли и убытки ",null,null,280]
[null,"Прибыль (убыток) до уплаты налога на прибыль (стр.270 + / – 280) ",null,null,290,{"$f":"F44","v":{"v":894362,"d":"894,362.00"}},null,{"$f":"H44","v":{"v":11768,"d":"11,768.00"}}]
[null,"Налог на прибыль ",null,null,300,0,{"v":134153,"d":"134,153.00"},null,{"v":3403,"d":"3,403.00"}]
[null,"Прочие налоги и другие обязательные платежи от прибыли ",null,null,310]
[null,"Чистая прибыль (убыток) отчетного периода (стр.290 – 300 – 310) ",null,null,320,{"$f":"F46-G47","v":{"v":760209,"d":"760,209.00"}},null,{"$f":"H46-I47","v":{"v":8365,"d":"8,365.00"}}]

{"sheet":"Жадваллар","index":6,"n_rows":19,"n_cols":5,"rows_kept":19,"hidden":true}
["Илова коди","Ҳужжат қайд рақами","Ҳужжат номи","Илова рақами","Илова номи"]
[{"$f":"B2&\"_\"&D2","v":"1806_1"},1806,"Суғурталовчилар ва қайта суғурталовчиларнинг тўлов қобилияти тўғрисидаги низом",1,"Умумий суғурта соҳасида ёки фақат қайта суғурта қилиш фаолиятини амалга оширадиган суғурталовчининг тўлов қобилияти маржасининг етарлилиги нормативи ҳисоб-китоби"]
["1806_2",1806,"Суғурталовчилар ва қайта суғурталовчиларнинг тўлов қобилияти тўғрисидаги низом",2,"Ҳаётни суғурта қилиш соҳасида суғурта фаолиятини амалга оширадиган суғурталовчининг тўлов қобилияти маржасининг етарлилиги нормативи ҳисоб-китоби"]
["1806_3",1806,"Суғурталовчилар ва қайта суғурталовчиларнинг тўлов қобилияти тўғрисидаги низом",3,"Суғурталовчи/қайта суғурталовчининг алоҳида таваккалчиликлар бўйича мажбуриятларнинг йўл қўйиладиган энг кўп миқдори ва мажбуриятлар жамининг йўл қўйиладиган энг кўп миқдори нормативларига риоя қилганлиги ҳамда суғурталовчи (қайта суғурталовчи) активларини жойлаштиришга оид талабларга риоя қилинганлиги тўғрисида маълумотлар"]
["1806_4",1806,"Суғурталовчилар ва қайта суғурталовчиларнинг тўлов қобилияти тўғрисидаги низом",4,"Суғурталовчи/қайта суғурталовчининг ҳар қандай битта юридик шахснинг устав капиталида иштирок этиш улуши ҳисоб-китоби"]
["1806_5",1806,"Суғурталовчилар ва қайта суғурталовчиларнинг тўлов қобилияти тўғрисидаги низом",5,"Суғурталовчи/қайта суғурталовчининг битта боғлиқ шахс ёки барча боғлиқ шахсларда жойлаштирилган активлари суммаси ҳисоб-китоби"]
["1806_6",1806,"Суғурталовчилар ва қайта суғурталовчиларнинг тўлов қобилияти тўғрисидаги низом",6,"Суғурталовчи/қайта суғурталовчининг қайта суғурта қилиш операцияларига оид талабларга риоя қилганлиги тўғрисида маълумотлар"]
["1882_1",1882,"Суғурталовчиларнинг суғурта захиралари тўғрисидаги низом",1,"Транспорт воситалари эгаларининг фуқаролик жавобгарлигини мажбурий суғурта қилиш бўйича барқарорлаштириш захирасини ҳисоблаш мақсадида даромадлар, харажатлар ва молиявий натижаларнинг ҳисоб-китоби"]
["1882_2",1882,"Суғурталовчиларнинг суғурта захиралари тўғрисидаги низом",2,"Иш берувчининг фуқаролик жавобгарлигини мажбурий суғурта қилиш бўйича барқарорлаштириш захирасини ҳисоблаш мақсадида даромадлар, харажатлар ва молиявий натижаларнинг ҳисоб-китоби"]
["1882_3",1882,"Суғурталовчиларнинг суғурта захиралари тўғрисидаги низом",3,"Ташувчининг фуқаролик жавобгарлигини мажбурий суғурта қилиш бўйича барқарорлаштириш захирасини ҳисоблаш мақсадида даромадлар, харажатлар ва молиявий натижаларнинг ҳисоб-китоби"]
["1882_4",1882,"Суғурталовчиларнинг суғурта захиралари тўғрисидаги низом",4,"Суғурта захираларининг умумий миқдори"]
["1882_5",1882,"Суғурталовчиларнинг суғурта захиралари тўғрисидаги низом",5,"Активлар таркиби тўғрисида маълумот"]
["1945_1",1945,"Суғурталовчиларнинг молиявий ҳисобот шаклларини ва уларни тўлдириш бўйича қоидаларни тасдиқлаш тўғрисидаги Молия вазирлиги буйруғи",1,"Бухгалтерия баланси — 1-сонли шакл — суғурта"]
["1945_2",1945,"Суғурталовчиларнинг молиявий ҳисобот шаклларини ва уларни тўлдириш бўйича қоидаларни тасдиқлаш тўғрисидаги Молия вазирлиги буйруғи",2,"Балансдан ташқари счётларда ҳисобга олинадиган қийматликларнинг мавжудлиги тўғрисида маълумотнома"]
["1945_3",1945,"Суғурталовчиларнинг молиявий ҳисобот шаклларини ва уларни тўлдириш бўйича қоидаларни тасдиқлаш тўғрисидаги Молия вазирлиги буйруғи",3,"Молиявий натижалар тўғрисидаги ҳисобот — 2-сонли шакл — суғурта"]
["1945_4",1945,"Суғурталовчиларнинг молиявий ҳисобот шаклларини ва уларни тўлдириш бўйича қоидаларни тасдиқлаш тўғрисидаги Молия вазирлиги буйруғи",4,"Бюджетга тўловлар тўғрисида маълумотнома"]
["1945_5",1945,"Суғурталовчиларнинг молиявий ҳисобот шаклларини ва уларни тўлдириш бўйича қоидаларни тасдиқлаш тўғрисидаги Молия вазирлиги буйруғи",5,"Пул оқимлари тўғрисидаги ҳисобот — 4-сонли шакл — суғурта"]
["1945_6",1945,"Суғурталовчиларнинг молиявий ҳисобот шаклларини ва уларни тўлдириш бўйича қоидаларни тасдиқлаш тўғрисидаги Молия вазирлиги буйруғи",6,"Чет эл валютасидаги пул маблағларининг ҳаракати тўғрисида маълумотнома"]
["1945_7",1945,"Суғурталовчиларнинг молиявий ҳисобот шаклларини ва уларни тўлдириш бўйича қоидаларни тасдиқлаш тўғрисидаги Молия вазирлиги буйруғи",7,"Хусусий капитал тўғрисидаги ҳисобот — 5-сонли шакл — суғурта"]

{"sheet":"1806_1_uz","index":7,"n_rows":35,"n_cols":4,"rows_kept":35,"hidden":true}
[null,"Қайд рақами",{"$f":"VLOOKUP($C$5,Жадваллар!$A:$E,2,FALSE)","v":1806},"Жадваллар рўйхати"]
[null,"Ҳужжат номи",{"$f":"VLOOKUP($C$5,Жадваллар!$A:$E,3,FALSE)","v":"Суғурталовчилар ва қайта суғурталовчиларнинг тўлов қобилияти тўғрисидаги низом"}]
[null,"Илова рақами",{"$f":"VLOOKUP($C$5,Жадваллар!$A:$E,4,FALSE)","v":1}]
[null,"Илова номи",{"$f":"VLOOKUP($C$5,Жадваллар!$A:$E,5,FALSE)","v":"Умумий суғурта соҳасида ёки фақат қайта суғурта қилиш фаолиятини амалга оширадиган суғурталовчининг тўлов қобилияти маржасининг етарлилиги нормативи ҳисоб-китоби"}]
[null,"Илова коди","1806_1"]
[]
[null,"Т/р ","Нормативнинг номи","Миқдор (минг сўм)"]
[null,"1.","Суғурта фаолияти тўғрисидаги қонун ҳужжатларига мувофиқ суғурталовчи учун белгиланган устав капиталининг энг кам миқдори"]
[null,"2.","Қайта суғурталовчиларнинг улушларини чегириб қолинган ўтган ўттиз олти ой мобайнида ҳисобланган суғурта товонлари суммаси "]
[null,"3.","Ўтган ўттиз олти ой мобайнида ҳисобланган суғурта товонлари суммаси"]
[null,"4.","Умумий суғурта соҳаси учун тузатувчи коэффициент (2-сатр миқдорининг 3-сатр миқдорига нисбати, 0,5 дан кам бўлмаслиги шарт) "]
[null,"5.","Ўтган ўн икки ой мобайнида барча суғурта (қайта суғурта қилиш) шартномалари бўйича ҳисобланган суғурта мукофотлари суммаси"]
[null,"6.","Ўтган ўн икки ой мобайнида 11 ва 13 классларга оид суғурта (қайта суғурта қилиш) шартномалари бўйича ҳисобланган суғурта мукофотлари суммасининг 50 фоизи"]
[null,"7.","Ўтган ўн икки ой мобайнида тузилган суғурта (қайта суғурта қилиш) шартномаларининг бекор қилиниши (шартлари ўзгариши) муносабати билан суғурта қилдирувчиларга (қайта суғурта қилдирувчиларга) қайтарилган суғурта мукофотлари суммаси"]
[null,"8.","5 ва 6-сатрлар миқдорларининг йиғиндисидан 7-сатр миқдорини чегириб қолиб аниқланган натижанинг 20 фоизи "]
[null,"9.","«Мукофотлар усули» бўйича ҳисобланган миқдор (4-сатр миқдорини 8-сатр миқдорига кўпайтириш йўли билан ҳисобланган миқдор) "]
[null,"10.","Ўтган ўттиз олти ой мобайнида 11 ва 13 классларга оид суғурта (қайта суғурта қилиш) шартномалари бўйича ҳисобланган суғурта товонлари суммасининг 50 фоизи"]
[null,"11.","Ҳисобот санасига хабар қилинган, лекин бартараф этилмаган зарарлар захирасининг миқдори"]
[null,"12.","Ҳисобот санасига 11 ва 13 классларга оид суғурта (қайта суғурта қилиш) шартномалари бўйича хабар қилинган, лекин бартараф этилмаган зарарлар захираси миқдорининг 50 фоизи"]
[null,"13.","3, 10, 11 ва 12-сатрлар миқдорлари йиғиндисининг 10 фоизи"]
[null,"14.","«Тўловлар усули» бўйича ҳисобланган миқдор (4-сатр миқдорини 13-сатр миқдорига кўпайтириш йўли билан ҳисобланган миқдор)"]
[null,"15.","Тўлов қобилияти маржасининг норматив миқдори (1, 9 ва 14-сатрларнинг миқдорларидан энг каттаси) "]
[null,"16.","Ўз маблағлари манбаларининг суммаси (бухгалтерия баланси пассив қисмининг биринчи бўлими бўйича жами суммаси)"]
[null,"17.","Номоддий активлар суммаси, суғурталовчи активларининг 10 фоизидан ошмаган миқдордаги суғурталовчининг асосий фаолияти учун харид қилинган дастурий таъминот бундан мустасно"]
[null,"18.","Таъсисчиларнинг устав капиталига улушлар бўйича қарзи суммаси"]
[null,"19.","Мақсадли тушумлар ва келгуси давр харажатлари ва тўловлари учун захиралар суммаси"]
[null,"20.","Таъсисчилар (акциядорлар) ўртасида тақсимлаш учун мўлжалланган тақсимланмаган фойда қисмининг суммаси"]
[null,"21.","Таъсисчиларга, акциядорларга ва ходимларга берилган қарзлар, шунингдек ушбу қарзлар бўйича жамғарилган фоизлар суммаси"]
[null,"22.","Дебитор — боғлиқ шахсларнинг қарзлари суммаси;"]
[null,"23.","Суғурта (қайта суғурта қилиш) шартномасида белгиланган тўлов санасидан уч ойдан кўп муддат мобайнида суғурта қилдирувчилар (қайта суғурта қилдирувчилар) томонидан тўланмаган суғурта (қайта суғурта) мукофотлари суммаси"]
[null,"24.","Солиқ ва бошқа мажбурий тўловлар бўйича дебиторлик қарзлар суммаси"]
[null,"25.","Берилган кафолатлар суммаси"]
[null,"26.","17-дан 25-гача бўлган сатрлар миқдорларининг йиғиндиси "]
[null,"27.","Тўлов қобилияти маржасининг ҳақиқий миқдори (16-сатр миқдоридан 26-сатр миқдорининг чегириш орқали аниқланади) "]
[null,"28.","Тўлов қобилияти маржасининг етарлилиги нормативи (27-сатр миқдорининг 15-сатр миқдорига нисбати)"]

{"sheet":"1806_2_uz","index":8,"n_rows":39,"n_cols":4,"rows_kept":39,"hidden":true,"merged":[[38,1,39,3]]}
[null,"Қайд рақами",{"$f":"VLOOKUP($C$5,Жадваллар!$A:$E,2,FALSE)","v":1806},"Жадваллар рўйхати"]
[null,"Ҳужжат номи",{"$f":"VLOOKUP($C$5,Жадваллар!$A:$E,3,FALSE)","v":"Суғурталовчилар ва қайта суғурталовчиларнинг тўлов қобилияти тўғрисидаги низом"}]
[null,"Илова рақами",{"$f":"VLOOKUP($C$5,Жадваллар!$A:$E,4,FALSE)","v":2}]
[null,"Илова номи",{"$f":"VLOOKUP($C$5,Жадваллар!$A:$E,5,FALSE)","v":"Ҳаётни суғурта қилиш соҳасида суғурта фаолиятини амалга оширадиган суғурталовчининг тўлов қобилияти маржасининг етарлилиги нормативи ҳисоб-китоби"}]
[null,"Илова коди","1806_2"]
[]
[null,"Т/р ","Нормативнинг номи","Миқдор (минг сўм)"]
[null,"1.","Суғурта фаолияти тўғрисидаги қонун ҳужжатларига мувофиқ суғурталовчи учун белгиланган устав капиталининг энг кам миқдори"]
[null,"2.","Қайта суғурталовчиларнинг мукофотлар захирасидаги улуши чегириб қолинган мукофотлар захираси миқдори"]
[null,"3.","Мукофотлар захираси миқдори"]
[null,"4.","Ҳаётни суғурта қилиш соҳаси учун тузатувчи коэффициент (2-сатр миқдорининг 3-сатр миқдорига нисбати, 0,85 дан кам бўлмаслиги шарт) "]
[null,"5.","3-сатр миқдорини 4-сатр миқдорига кўпайтириш йўли билан ҳисобланган миқдорнинг 5 фоизи"]
[null,"6.","Қайта суғурталовчиларнинг улушларини чегириб қолинган ўтган ўттиз олти ой мобайнида умумий суғурта соҳасининг 1 ва 2 классларига оид суғурта (қайта суғурта қилиш) шартномалари бўйича ҳисобланган суғурта товонлари суммаси"]
[null,"7.","Ўтган ўттиз олти ой мобайнида умумий суғурта соҳасининг 1 ва 2 классларига оид суғурта (қайта суғурта қилиш) шартномалари бўйича ҳисобланган суғурта товонлари суммаси"]
[null,"8.","Умумий суғурта соҳасининг 1 ва 2 класслари учун тузатувчи коэффициент (6-сатр миқдорининг 7-сатр миқдорига нисбати, 0,5 дан кам бўлмаслиги шарт) "]
[null,"9.","Ўтган ўн икки ой мобайнида умумий суғурта соҳасининг 1 ва 2 классларига оид суғурта (қайта суғурта қилиш) шартномалари бўйича ҳисобланган суғурта мукофотлари суммаси"]
[null,"10.","Ўтган ўн икки ой мобайнида умумий суғурта соҳасининг 1 ва 2 классларига оид тузилган суғурта (қайта суғурта қилиш) шартномаларининг бекор қилиниши (шартлари ўзгариши) муносабати билан суғурта қилдирувчиларга (қайта суғурта қилдирувчиларга) қайтарилган суғурта мукофотлари суммаси"]
[null,"11.","9-сатр миқдоридан 10-сатр миқдорини чегириб қолиб аниқланган натижанинг 20 фоизи"]
[null,"12.","Ҳисобот санасига умумий суғурта соҳасининг 1 ва 2 классларига оид хабар қилинган, лекин бартараф этилмаган зарарлар захирасининг миқдори"]
[null,"13.","7 ва 12-сатрлар миқдорлари йиғиндисининг 10 фоизи"]
[null,"14.","11 ва 13-сатрларнинг миқдорларидан энг каттаси"]
[null,"15.","8-сатр миқдорини 14-сатр миқдорига кўпайтириш йўли билан ҳисобланган миқдор"]
[null,"16.","5 ва 15-сатрлар миқдорлари йиғиндиси*"]
[null,"17.","Тўлов қобилияти маржасининг норматив миқдори (1 ва 16-сатрларнинг миқдорларидан энг каттаси) "]
[null,"18.","Ўз маблағлари манбаларининг суммаси (бухгалтерия баланси пассив қисмининг биринчи бўлими бўйича жами суммаси)"]
[null,"19.","Номоддий активлар суммаси, суғурталовчи активларининг 10 фоизидан ошмаган миқдордаги суғурталовчининг асосий фаолияти учун харид қилинган дастурий таъминот бундан мустасно"]
[null,"20.","Таъсисчиларнинг устав капиталига улушлар бўйича қарзи суммаси"]
[null,"21.","Мақсадли тушумлар ва келгуси давр харажатлари ва тўловлари учун захиралар суммаси"]
[null,"22.","Таъсисчилар (акциядорлар) ўртасида тақсимлаш учун мўлжалланган тақсимланмаган фойда қисмининг суммаси"]
[null,"23.","Таъсисчиларга, акциядорларга ва ходимларга берилган қарзлар, шунингдек ушбу қарзлар бўйича жамғарилган фоизлар суммаси"]
[null,"24.","Дебитор-боғлиқ шахсларнинг қарзлари суммаси;"]
[null,"25.","Суғурта (қайта суғурта қилиш) шартномасида белгиланган тўлов санасидан уч ойдан кўп муддат мобайнида суғурта қилдирувчилар (қайта суғурта қилдирувчилар) томонидан тўланмаган суғурта (қайта суғурта) мукофотлари суммаси"]
[null,"26.","Солиқ ва бошқа мажбурий тўловлар бўйича дебиторлик қарзлар суммаси"]
[null,"27.","Берилган кафолатлар суммаси"]
[null,"28.","19-дан 27-гача бўлган сатрлар миқдорларининг йиғиндиси "]
[null,"29.","Тўлов қобилияти маржасининг ҳақиқий миқдори (18-сатр миқдоридан 28-сатр миқдорининг чегириш орқали аниқланади) "]
[null,"30.","Тўлов қобилияти маржасининг етарлилиги нормативи (29-сатр миқдорининг 17-сатр миқдорига нисбати)"]
[]
[null,"* 5-дан 15-гача бўлган сатрлар, фақат ҳаётни суғурта қилиш соҳасида суғурта фаолиятини амалга оширадиган суғурталовчи умумий суғурта соҳасининг 1 ва 2 класслари бўйича ҳам суғурта фаолиятини амалга оширадиган бўлса, қўлланилади. "]

{"sheet":"1806_3_uz","index":9,"n_rows":20,"n_cols":5,"rows_kept":20,"hidden":true,"merged":[[6,3,6,4]]}
[null,"Қайд рақами",{"$f":"VLOOKUP($C$5,Жадваллар!$A:$E,2,FALSE)","v":1806},"Жадваллар рўйхати"]
[null,"Ҳужжат номи",{"$f":"VLOOKUP($C$5,Жадваллар!$A:$E,3,FALSE)","v":"Суғурталовчилар ва қайта суғурталовчиларнинг тўлов қобилияти тўғрисидаги низом"}]
[null,"Илова рақами",{"$f":"VLOOKUP($C$5,Жадваллар!$A:$E,4,FALSE)","v":3}]
[null,"Илова номи",{"$f":"VLOOKUP($C$5,Жадваллар!$A:$E,5,FALSE)","v":"Суғурталовчи/қайта суғурталовчининг алоҳида таваккалчиликлар бўйича мажбуриятларнинг йўл қўйиладиган энг кўп миқдори ва мажбуриятлар жамининг йўл қўйиладиган энг кўп миқдори нормативларига риоя қилганлиги ҳамда суғурталовчи (қайта суғурталовчи) активларини жойлаштиришга оид талабларга риоя қилинганлиги тўғрисида маълумотлар"}]
[null,"Илова коди","1806_3"]
[]
[null,"Т/р ","Нормативнинг номи","Миқдор (минг сўм) "]
[{"$nulls":3},"норматив","ҳақиқатда"]
[null,"1.","Суғурталовчининг (қайта суғурталовчининг) алоҳида таваккалчиликлар бўйича мажбуриятларининг энг кўп миқдори, экспорт контрактларини сиёсий ва тижорат таваккалчиликларидан суғурта қилиш бундан мустасно"]
[null,"1.1.","Суғурталовчининг (қайта суғурталовчининг) экспорт контрактларини сиёсий ва тижорат таваккалчиликларидан суғурта қилиш юзасидан алоҳида таваккалчиликлар бўйича мажбуриятларининг энг кўп миқдори"]
[null,"2.","Суғурталовчининг (қайта суғурталовчининг) бешта энг йирик алоҳида таваккалчиликлар бўйича мажбуриятларининг энг кўп миқдори"]
[null,"2.1.","Суғурталовчининг (қайта суғурталовчининг) экспорт контрактларини сиёсий ва тижорат таваккалчиликларидан суғурта қилиш юзасидан бешта энг йирик алоҳида таваккалчиликлар бўйича мажбуриятларининг энг кўп миқдори"]
[null,"3.","Суғурталовчи (қайта суғурталовчи) бошқа юридик шахсларнинг устав капиталларига жойлаштирган активларининг умумий суммаси"]
[null,"4.","Суғурталовчи (қайта суғурталовчи) активларини битта ер участкаси ёки кўчмас мулкнинг бошқа объектига ёхуд битта объект сифатида кўрилиши мумкин бўлган ер участкалари ва кўчмас мулк объектлари мажмуига жойлаштиришининг энг кўп миқдори"]
[null,"5.","Битта тижорат банкига жойлаштирилган энг кўп омонат (депозит) "]
[null,"6.","Кредит ташкилотларига (тижорат банкларидан ташқари) жойлаштирилган омонатларнинг (депозитларнинг) умумий суммаси "]
[null,"7.","Суғурталовчи (қайта суғурталовчи) активларини битта юридик шахснинг устав капиталига жойлаштириш ёки битта юридик шахсда бошқа иштирок этиш ҳуқуқи"]
[null,"8.","Суғурталовчи (қайта суғурталовчи) таъсисчилари, акциядорлари ва ходимларига берилган, шунингдек, у билан ҳаёт суғуртаси шартномасини тузган суғурта қилдирувчиларга берилган ушбу шартномалар билан кафолатланган қарзларнинг умумий суммаси"]
[null,"9.","Жалб этилган қарзнинг (молиявий ёрдамнинг) энг кўп миқдори"]
[null,"10.","Суғурталовчининг (қайта суғурталовчининг) касса ва/ёки ҳисоб (валюта) ва бошқа банк рақамларидаги пул маблағлари, шунингдек, уларга тенглашитирилган маблағлар"]

{"sheet":"1806_4_uz","index":10,"n_rows":37,"n_cols":6,"rows_kept":37,"hidden":true}
[null,"Қайд рақами",{"$f":"VLOOKUP($C$5,Жадваллар!$A:$E,2,FALSE)","v":1806},"Жадваллар рўйхати"]
[null,"Ҳужжат номи",{"$f":"VLOOKUP($C$5,Жадваллар!$A:$E,3,FALSE)","v":"Суғурталовчилар ва қайта суғурталовчиларнинг тўлов қобилияти тўғрисидаги низом"}]
[null,"Илова рақами",{"$f":"VLOOKUP($C$5,Жадваллар!$A:$E,4,FALSE)","v":4}]
[null,"Илова номи",{"$f":"VLOOKUP($C$5,Жадваллар!$A:$E,5,FALSE)","v":"Суғурталовчи/қайта суғурталовчининг ҳар қандай битта юридик шахснинг устав капиталида иштирок этиш улуши ҳисоб-китоби"}]
[null,"Илова коди","1806_4"]
[]
[null,"№","Юридик шахснинг номи ","Юридик шахснинг устав капитали миқдори (минг сўм) ","Устав капиталда суғурталовчининг (қайта суғурталовчининг) иштирок этиш миқдори (минг сўм) ","Устав капиталда суғурталовчининг (қайта суғурталовчининг) иштирок этиш улуши (%)"]
[null,1]
[null,{"$f":"B8+1","v":2}]
[null,{"$f":"B9+1","v":3}]
[null,4]
[null,5]
[null,6]
[null,7]
[null,8]
[null,9]
[null,10]
[null,11]
[null,{"$f":"B18+1","v":12}]
[null,13]
[null,14]
[null,15]
[null,16]
[null,17]
[null,18]
[null,19]
[null,20]
[null,21]
[null,22]
[null,23]
[null,24]
[null,25]
[null,26]
[null,27]
[null,28]
[null,29]
[null,30]

{"sheet":"1806_5_uz","index":11,"n_rows":37,"n_cols":8,"rows_kept":37,"hidden":true}
[null,"Қайд рақами",{"$f":"VLOOKUP($C$5,Жадваллар!$A:$E,2,FALSE)","v":1806},"Жадваллар рўйхати"]
[null,"Ҳужжат номи",{"$f":"VLOOKUP($C$5,Жадваллар!$A:$E,3,FALSE)","v":"Суғурталовчилар ва қайта суғурталовчиларнинг тўлов қобилияти тўғрисидаги низом"}]
[null,"Илова рақами",{"$f":"VLOOKUP($C$5,Жадваллар!$A:$E,4,FALSE)","v":5}]
[null,"Илова номи",{"$f":"VLOOKUP($C$5,Жадваллар!$A:$E,5,FALSE)","v":"Суғурталовчи/қайта суғурталовчининг битта боғлиқ шахс ёки барча боғлиқ шахсларда жойлаштирилган активлари суммаси ҳисоб-китоби"}]
[null,"Илова коди","1806_5"]
[]
[null,"№","Боғлиқ шахс (номи ёки Ф.И.Ш.) ","Жойлаштириш тури","Қўйилманинг даромадлилиги (йиллик фоизларда)","Жойлаштирилган активлар суммаси","Суғурталовчининг (қайта суғурталовчининг)боғлиқ шахслар билан фаолиятининг кўрсаткичи (%)","Норматив (%)"]
[null,1]
[null,{"$f":"B8+1","v":2}]
[null,{"$f":"B9+1","v":3}]
[null,4]
[null,5]
[null,6]
[null,7]
[null,8]
[null,9]
[null,10]
[null,11]
[null,12]
[null,13]
[null,14]
[null,15]
[null,16]
[null,17]
[null,18]
[null,19]
[null,20]
[null,21]
[null,22]
[null,23]
[null,24]
[null,{"$f":"B31+1","v":25}]
[null,26]
[null,27]
[null,28]
[null,29]
[null,30]

{"sheet":"1806_6_uz","index":12,"n_rows":44,"n_cols":8,"rows_kept":44,"hidden":true,"merged":[[12,1,12,7]]}
[null,"Қайд рақами",{"$f":"VLOOKUP($C$5,Жадваллар!$A:$E,2,FALSE)","v":1806},"Жадваллар рўйхати"]
[null,"Ҳужжат номи",{"$f":"VLOOKUP($C$5,Жадваллар!$A:$E,3,FALSE)","v":"Суғурталовчилар ва қайта суғурталовчиларнинг тўлов қобилияти тўғрисидаги низом"}]
[null,"Илова рақами",{"$f":"VLOOKUP($C$5,Жадваллар!$A:$E,4,FALSE)","v":6}]
[null,"Илова номи",{"$f":"VLOOKUP($C$5,Жадваллар!$A:$E,5,FALSE)","v":"Суғурталовчи/қайта суғурталовчининг қайта суғурта қилиш операцияларига оид талабларга риоя қилганлиги тўғрисида маълумотлар"}]
[null,"Илова коди","1806_6"]
[]
[null,"1-жадвал","Кўрсаткичнинг номи","Қатор рақами","Миқдор, минг сўм, АҚШ доллари, бошқа ","Изоҳ"]
[null,null,"Ўзида қолдирилган улушнинг энг кам миқдори (мажбуриятлар чет эл суғурта ташкилотларида қайта суғурталанганда), экспорт контрактларини сиёсий ва тижорат таваккалчиликларидан суғурта қилиш ва чет элга чиқувчи шахсларни суғурта қилиш шартномалари бундан мустасно",1]
[null,null,"Суғурталовчининг (қайта суғурталовчининг) ўтган чоракдаги тўлов қобилияти маржасининг ҳақиқий миқдори",2]
[null,null,"1-қаторнинг 2-қаторга нисбати (%)",3,null,"Йўл қўйиладиган энг кам миқдор 5% "]
[null,null,"Ўзбекистон Республикаси ташқарисига қайта суғуртага берилган ҳар бир алоҳида суғурта (қайта суғурта қилиш) шартномаси бўйича мажбуриятларнинг энг кўп ҳажми",4,null,"Йўл қўйиладиган энг кўп миқдор 95% "]
[]
[null,"* Суғурта брокери орқали қайта суғурта қилинганда унинг номи ва улуши кўрсатилади, қайта суғурталовчилар тўғрисидаги маълумот ушбу жадвалга, мазкур шаклга мувофиқ илова қилинади."]
[null,"2-жадвал","Суғурталовчининг/ қайта суғурталовчининг номи (кимга қайта суғурта қилишга берилган)*","Молиявий барқарорлик рейтинги (рейтинг агентлигининг номини кўрсатган ҳолда)","Суғурталовчи (қайта суғурталовчи) мамлакати","Қайта суғуртага берилган суғурта мажбуриятлари ҳажми (минг сўм, АҚШ доллари, бошқа)","Қайта суғуртага берилган шартномалар бўйича суғурта мукофотлари ҳажми (минг сўм, АҚШ доллари, бошқа)","Қайта суғуртага берилган суғурта мажбуриятлари умумий ҳажмидаги қайта суғурталовчининг улуши (%)"]
[null,1]
[null,{"$f":"B15+1","v":2}]
[null,{"$f":"B16+1","v":3}]
[null,4]
[null,5]
[null,6]
[null,7]
[null,8]
[null,9]
[null,10]
[null,11]
[null,12]
[null,13]
[null,14]
[null,15]
[null,16]
[null,17]
[null,18]
[null,19]
[null,20]
[null,21]
[null,22]
[null,23]
[null,24]
[null,25]
[null,26]
[null,27]
[null,28]
[null,29]
[null,30]

{"sheet":"1882_1_uz","index":13,"n_rows":34,"n_cols":4,"rows_kept":34,"hidden":true,"merged":[[33,1,35,3]]}
[null,"Қайд рақами",{"$f":"VLOOKUP($C$5,Жадваллар!$A:$E,2,FALSE)","v":1882},"Жадваллар рўйхати"]
[null,"Ҳужжат номи",{"$f":"VLOOKUP($C$5,Жадваллар!$A:$E,3,FALSE)","v":"Суғурталовчиларнинг суғурта захиралари тўғрисидаги низом"}]
[null,"Илова рақами",{"$f":"VLOOKUP($C$5,Жадваллар!$A:$E,4,FALSE)","v":1}]
[null,"Илова номи",{"$f":"VLOOKUP($C$5,Жадваллар!$A:$E,5,FALSE)","v":"Транспорт воситалари эгаларининг фуқаролик жавобгарлигини мажбурий суғурта қилиш бўйича барқарорлаштириш захирасини ҳисоблаш мақсадида даромадлар, харажатлар ва молиявий натижаларнинг ҳисоб-китоби"}]
[null,"Илова коди","1882_1"]
[{"$nulls":3},"1-жадвал"]
[null,"Сатр т/р","Кўрсаткич номи","Миқдори (минг сўм)"]
[null,"1.","Ҳисобот даврида ҳисобланган суғурта брутто-мукофоти"]
[null,"2.","Ҳисобот даврида суғурталовчининг тўловларни кафолатлаш Жамғармасига мажбурий бадаллари"]
[null,"3.","Ҳисобот даври бошига ИМЗ "]
[null,"4.","Ҳисобот даври охирига (ҳисобот санасига) ИМЗ"]
[null,"5.","Ҳисобот даври бошига ХЗЗ"]
[null,"6.","Ҳисобот даври охирига (ҳисобот санасига) ХЗЗ"]
[null,"7.","Ҳисобот даври бошига СХЗЗ "]
[null,"8.","Ҳисобот даври охирига (ҳисобот санасига) СХЗЗ"]
[null,"9.","Ҳисобот даврида амалга оширилган суғурта тўловлари"]
[null,"10.","Шартномаларнинг муддатидан олдин тугатилиши (шартларининг ўзгартирилиши) муносабати билан ҳисобот даврида суғурта қилдирувчиларга қайтарилган суғурта мукофотлари (бадаллари) "]
[null,"11.","Ҳисобот даврида транспорт воситалари эгаларининг фуқаролик жавобгарлигини мажбурий суғурта қилишни амалга ошириш учун амалга оширилган харажатлар (шу жумладан, суғурта ҳодисалари содир бўлишининг олдини олиш ва огоҳлантириш бўйича огоҳлантириш чора-тадбирлари захирасига ажратмалар) (11 сатр = 1 сатр х 25%)"]
[null,"12.","Ҳисобот даврида ИМЗ, ХЗЗ ва СХЗЗ ўзгариши (12 сатр = 4 сатр – 3 сатр + 6 сатр – 5 сатр + 8 сатр – 7 сатр) "]
[null,"13.","Жами — даромадлар (агар 12 сатр > = 0, бу ҳолда 13 сатр = 1 сатр; агар 12 сатр < 0, бу ҳолда 13 сатр = 1 сатр – 12 сатр.) "]
[null,"14.","Жами — харажатлар (агар 12 сатр > = 0, бу ҳолда 14 сатр = 2 сатр + 9 сатр + 10 сатр + 11 сатр + 12 сатр; агар 12 сатр < 0, бу ҳолда 14 сатр = 2 сатр + 9 сатр + 10 сатр + 11 сатр.) "]
[null,"15.","Молиявий натижа (даромадларнинг харажатлардан ёки харажатларнинг даромадлардан юқорилиги) (15 сатр = 13 сатр – 14 сатр)"]
[]
[null,null,"Транспорт воситалари эгаларининг фуқаролик жавобгарлигини мажбурий суғурта қилиш бўйича барқарорлаштириш захирасининг ҳисоб-китоби","2-жадвал"]
[null,"Сатр т/р","Кўрсаткич номи","Миқдори (минг сўм)"]
[null,"1.","Даромадлар (1-жадвалнинг 13 сатри маълумотларига кўра) "]
[null,"2.","Молиявий натижа (даромадларнинг харажатлардан ёки харажатларнинг даромадлардан ошганлиги) (1-жадвалнинг 15 сатри маълумотларига кўра) "]
[null,"3.","Ҳисобот даври бошига транспорт воситалари эгаларининг фуқаролик жавобгарлигини мажбурий суғурта қилиш бўйича барқарорлаштириш захираси (ФЖМС БЗ) "]
[null,"4.","ФЖМС БЗ нинг кўпайиши/камайиши (агар 2 сатр > = 0,05 х 1 сатр, бу ҳолда 4 сатр = 2 сатр – 0,05 х 1 сатр; агар 0 < = 2 сатр < 0,05 х 1 сатр, бу ҳолда 4 сатр = 0; агар 2 сатр < 0, бу ҳолда 4 сатр = 2 сатр.) "]
[null,"5.","Оралиқ якун (3 сатр + 4 сатр)"]
[null,"51.","Транспорт воситалари эгаларининг фуқаролик жавобгарлигини мажбурий суғурта қилиш шартномалари бўйича ҳисобот санасига қадар ўттиз олти ой даврида амалга оширилган суғурта тўловлари суммаси"]
[null,"6.","Ҳисобот санасига транспорт воситалари эгаларининг фуқаролик жавобгарлигини мажбурий суғурта қилиш бўйича барқарорлаштириш захираси (агар 5-сатр < 0, бу ҳолда 6-сатр = 0; агар 51-сатр > 5-сатр >= 0, бу ҳолда 6-сатр = 5-сатр; агар 5-сатр > 51-сатр, бу ҳолда 6-сатр = 51-сатр.) "]
[]
[null,"* Фақатгина суғурталовчи томонидан транспорт воситалари эгаларининг фуқаролик жавобгарлигини мажбурий суғурта қилиш бўйича фаолият олиб борилган тақдирда тўлдирилади. Мазкур жадвалдаги даромадлар, харажатлар ва молиявий натижани аниқлашда қўлланилувчи барча миқдорлар транспорт воситалари эгаларининг фуқаролик жавобгарлигини мажбурий суғурта қилишга тааллуқлидир."]

{"sheet":"1882_2_uz","index":14,"n_rows":32,"n_cols":4,"rows_kept":32,"hidden":true,"merged":[[31,1,33,3]]}
[null,"Қайд рақами",{"$f":"VLOOKUP($C$5,Жадваллар!$A:$E,2,FALSE)","v":1882},"Жадваллар рўйхати"]
[null,"Ҳужжат номи",{"$f":"VLOOKUP($C$5,Жадваллар!$A:$E,3,FALSE)","v":"Суғурталовчиларнинг суғурта захиралари тўғрисидаги низом"}]
[null,"Илова рақами",{"$f":"VLOOKUP($C$5,Жадваллар!$A:$E,4,FALSE)","v":2}]
[null,"Илова номи",{"$f":"VLOOKUP($C$5,Жадваллар!$A:$E,5,FALSE)","v":"Иш берувчининг фуқаролик жавобгарлигини мажбурий суғурта қилиш бўйича барқарорлаштириш захирасини ҳисоблаш мақсадида даромадлар, харажатлар ва молиявий натижаларнинг ҳисоб-китоби"}]
[null,"Илова коди","1882_2"]
[{"$nulls":3},"1-жадвал"]
[null,"Сатр №","Кўрсаткич номи","Миқдори (минг сўм)"]
[null,"1.","Ҳисобот даврида ҳисобланган суғурта брутто-мукофоти"]
[null,"2.","Ҳисобот даври бошига ИМЗ"]
[null,"3.","Ҳисобот даври охирига (ҳисобот санасига) ИМЗ"]
[null,"4.","Ҳисобот даври бошига ХЗЗ"]
[null,"5.","Ҳисобот даври охирига (ҳисобот санасига) ХЗЗ"]
[null,"6.","Ҳисобот даври бошига СХЗЗ"]
[null,"7.","Ҳисобот даври охирига (ҳисобот санасига) СХЗЗ"]
[null,"8.","Ҳисобот даврида амалга оширилган суғурта тўловлари"]
[null,"9.","Шартномаларнинг муддатидан олдин тугатилиши (шартларининг ўзгартирилиши) муносабати билан ҳисобот даврида суғурта қилдирувчиларга қайтарилган суғурта мукофотлари (бадаллари)"]
[null,"10.","Ҳисобот даврида иш берувчининг фуқаролик жавобгарлигини мажбурий суғурта қилишни амалга ошириш учун амалга оширилган харажатлар (шу жумладан, суғурта ҳодисалари содир бўлишининг олдини олиш ва огоҳлантириш бўйича огоҳлантириш чора-тадбирлари захирасига ажратмалар) (10 сатр = 1сатр х 30%)"]
[null,"11.","Ҳисобот даврида ИМЗ, ХЗЗ ва СХЗЗ ўзгариши (11 сатр = 3 сатр – 2 сатр + 5 сатр – 4 сатр + 7 сатр – 6 сатр) "]
[null,"12.","Жами — даромадлар (агар 11 сатр > = 0, бу ҳолда 12 сатр = 1 сатр; агар 11 сатр < 0, бу ҳолда 12 сатр = 1 сатр – 11 сатр)"]
[null,"13.","Жами — харажатлар (агар 11 сатр > = 0, бу ҳолда 13 сатр = 8 сатр + 9 сатр + 10 сатр + 11 сатр; агар 11 сатр < 0, бу ҳолда 13 сатр = 8 сатр + 9 сатр + 10 сатр)"]
[null,"14.","Молиявий натижа (даромадларнинг харажатлардан ёки харажатларнинг даромадлардан юқорилиги) (14 сатр = 12 сатр – 13 сатр)"]
[]
[null,null,"Иш берувчининг фуқаролик жавобгарлигини мажбурий суғурта қилиш бўйича барқарорлаштириш захирасининг ҳисоб-китоби","2-жадвал"]
[null,"Сатр №","Кўрсаткич номи","Миқдори (минг сўм)"]
[null,"1.","Даромадлар (1-жадвалнинг 12 сатри маълумотларига кўра)"]
[null,"2.","Молиявий натижа (даромадларнинг харажатлардан ёки харажатларнинг даромадлардан ошганлиги) (1-жадвалнинг 14 сатри маълумотларига кўра)"]
[null,"3.","Ҳисобот даври бошига иш берувчининг фуқаролик жавобгарлигини мажбурий суғурта қилиш бўйича барқарорлаштириш захираси (ИФЖМС БЗ)"]
[null,"4.","ИФЖМС БЗ нинг кўпайиши/камайиши (агар 2 сатр > = 0,05 х 1 сатр, бу ҳолда 4 сатр = 2 сатр – 0,05 х 1 сатр; агар 0 < = 2 сатр < 0,05 х 1 сатр, бу ҳолда 4 сатр = 0; агар 2 сатр < 0, бу ҳолда 4 сатр = 2 сатр)"]
[null,"5.","Оралиқ якун (3 сатр + 4 сатр)"]
[null,"6.","Ҳисобот санасига иш берувчининг фуқаролик жавобгарлигини мажбурий суғурта қилиш бўйича барқарорлаштириш захираси (агар 5 сатр < 0, бу ҳолда 6 сатр = 0; агар 5 сатр > = 0, бу ҳолда 6 сатр = 5 сатр)"]
[]
[null,"* Фақатгина суғурталовчи томонидан иш берувчининг фуқаролик жавобгарлигини мажбурий суғурта қилиш бўйича фаолият олиб борилган тақдирда тўлдирилади. Мазкур жадвалдаги даромадлар, харажатлар ва молиявий натижани аниқлашда қўлланилувчи барча миқдорлар иш берувчининг фуқаролик жавобгарлигини мажбурий суғурта қилишга тааллуқлидир."]

{"sheet":"1882_3_uz","index":15,"n_rows":32,"n_cols":4,"rows_kept":32,"hidden":true,"merged":[[31,1,33,3]]}
[null,"Қайд рақами",{"$f":"VLOOKUP($C$5,Жадваллар!$A:$E,2,FALSE)","v":1882},"Жадваллар рўйхати"]
[null,"Ҳужжат номи",{"$f":"VLOOKUP($C$5,Жадваллар!$A:$E,3,FALSE)","v":"Суғурталовчиларнинг суғурта захиралари тўғрисидаги низом"}]
[null,"Илова рақами",{"$f":"VLOOKUP($C$5,Жадваллар!$A:$E,4,FALSE)","v":3}]
[null,"Илова номи",{"$f":"VLOOKUP($C$5,Жадваллар!$A:$E,5,FALSE)","v":"Ташувчининг фуқаролик жавобгарлигини мажбурий суғурта қилиш бўйича барқарорлаштириш захирасини ҳисоблаш мақсадида даромадлар, харажатлар ва молиявий натижаларнинг ҳисоб-китоби"}]
[null,"Илова коди","1882_3"]
[{"$nulls":3},"1-жадвал"]
[null,"Сатр Т/р","Кўрсаткич номи","Миқдори (минг сўм)"]
[null,"1.","Ҳисобот даврида ҳисобланган суғурта брутто-мукофоти"]
[null,"2.","Ҳисобот даври бошига ИМЗ"]
[null,"3.","Ҳисобот даври охирига (ҳисобот санасига) ИМЗ"]
[null,"4.","Ҳисобот даври бошига ХЗЗ"]
[null,"5.","Ҳисобот даври охирига (ҳисобот санасига) ХЗЗ"]
[null,"6.","Ҳисобот даври бошига СХЗЗ"]
[null,"7.","Ҳисобот даври охирига (ҳисобот санасига) СХЗЗ"]
[null,"8.","Ҳисобот даврида амалга оширилган суғурта тўловлари"]
[null,"9.","Шартномаларнинг муддатидан олдин тугатилиши (шартларининг ўзгартирилиши) муносабати билан ҳисобот даврида суғурта қилдирувчиларга қайтарилган суғурта мукофотлари (бадаллари)"]
[null,"10.","Ҳисобот даврида ташувчининг фуқаролик жавобгарлигини мажбурий суғурта қилишни амалга ошириш учун амалга оширилган харажатлар (шу жумладан, суғурта ҳодисалари содир бўлишининг олдини олиш ва огоҳлантириш бўйича огоҳлантириш чора-тадбирлари захирасига ажратмалар) (10 сатр = 1 сатр х 30%)"]
[null,"11.","Ҳисобот даврида ИМЗ, ХЗЗ ва СХЗЗ ўзгариши (11 сатр = 3 сатр — 2 сатр + 5 сатр — 4 сатр + 7 сатр — 6 сатр)"]
[null,"12.","Жами — даромадлар (агар 11 сатр > = 0, бу ҳолда 12 сатр = 1 сатр; агар 11 сатр < 0, бу ҳолда 12 сатр = 1 сатр — 11 сатр)"]
[null,"13.","Жами — харажатлар (агар 11 сатр >= 0, бу ҳолда 13 сатр = 8 сатр + 9 сатр + 10 сатр + 11 сатр; агар 11 сатр < 0, бу ҳолда 13 сатр = 8 сатр + 9 сатр + 10 сатр)"]
[null,"14.","Молиявий натижа (даромадларнинг харажатлардан ёки харажатларнинг даромадлардан юқорилиги) (14 сатр = 12 сатр — 13 сатр)"]
[]
[null,null,"Ташувчининг фуқаролик жавобгарлигини мажбурий суғурта қилиш бўйича барқарорлаштириш захирасининг ҳисоб-китоби","2-жадвал"]
[null,"Сатр Т/р","Кўрсаткич номи","Миқдори (минг сўм)"]
[null,"1.","Даромадлар (1-жадвалнинг 12 сатри маълумотларига кўра)"]
[null,"2.","Молиявий натижа (даромадларнинг харажатларданёки харажатларнинг даромадлардан ошганлиги) (1-жадвалнинг 14 сатри маълумотларига кўра)"]
[null,"3.","Ҳисобот даври бошига ташувчининг фуқаролик жавобгарлигини мажбурий суғурта қилиш бўйича барқарорлаштириш захираси (ТФЖМС БЗ)"]
[null,"4.","ТФЖМС БЗ нинг кўпайиши/камайиши (агар 2 сатр > = 0,05 х 1 сатр, бу ҳолда 4 сатр = 2 сатр — 0,05 х 1 сатр; агар 0 < = 2 сатр < 0,05 х 1 сатр, бу ҳолда 4 сатр = 0; агар 2 сатр < 0, бу ҳолда 4 сатр = 2 сатр)"]
[null,"5.","Оралиқ якун (3 сатр + 4 сатр)"]
[null,"6.","Ҳисобот санасига ташувчининг фуқаролик жавобгарлигини мажбурий суғурта қилиш бўйича барқарорлаштириш захираси (агар 5 сатр < 0, бу ҳолда 6 сатр = 0; агар 5 сатр > = 0, бу ҳолда 6 сатр = 5 сатр)"]
[]
[null,"* Фақатгина суғурталовчи томонидан ташувчининг фуқаролик жавобгарлигини мажбурий суғурта қилиш бўйича фаолият олиб борилган тақдирда тўлдирилади. Мазкур жадвалдаги даромадлар, харажатлар ва молиявий натижани аниқлашда қўлланилувчи барча миқдорлар ташувчининг фуқаролик жавобгарлигини мажбурий суғурта қилишга тааллуқлидир."]

{"sheet":"1882_4_uz","index":16,"n_rows":47,"n_cols":8,"rows_kept":47,"hidden":true,"merged":[[6,1,7,2],[6,3,7,3],[6,4,6,7],[8,1,8,2],[9,1,9,2],[10,1,10,2],[11,1,11,2],[12,1,12,2],[13,1,13,2],[14,1,14,2],[15,1,15,2],[16,1,16,2],[17,1,17,2],[18,1,18,2],[19,1,19,2],[20,1,20,2],[21,1,21,2],[22,1,22,2],[23,1,23,2],[24,1,24,2],[25,1,25,2],[26,1,26,2],[27,1,27,2],[28,1,28,2],[29,1,29,2],[30,1,30,2],[31,1,31,2],[32,1,32,2],[33,1,33,2],[34,1,34,2],[35,1,35,2],[36,1,36,2],[37,1,37,2],[38,1,38,2],[39,1,39,2],[40,1,40,2],[41,1,41,2],[42,1,42,2],[43,1,43,2],[44,1,44,2],[45,1,45,2],[46,1,46,2]]}
[null,"Қайд рақами",{"$f":"VLOOKUP($C$5,Жадваллар!$A:$E,2,FALSE)","v":1882},"Жадваллар рўйхати"]
[null,"Ҳужжат номи",{"$f":"VLOOKUP($C$5,Жадваллар!$A:$E,3,FALSE)","v":"Суғурталовчиларнинг суғурта захиралари тўғрисидаги низом"}]
[null,"Илова рақами",{"$f":"VLOOKUP($C$5,Жадваллар!$A:$E,4,FALSE)","v":4}]
[null,"Илова номи",{"$f":"VLOOKUP($C$5,Жадваллар!$A:$E,5,FALSE)","v":"Суғурта захираларининг умумий миқдори"}]
[null,"Илова коди","1882_4"]
[]
[null,"Захиралар",null,"Жами (минг сўм)","Шулардан хорижий валютада"]
[{"$nulls":4},"АҚШ доллари","евро","бошқа","жами (минг сўм экв.)"]
[null,"Ишлаб топилмаган мукофот захираси (жами)"]
[null,"1-ҳисоб гуруҳи, шу жумладан:"]
[null,"ФЖМС бўйича ИМЗ"]
[null,"ИФЖМС бўйича ИМЗ"]
[null,"ТФЖМС бўйича ИМЗ"]
[null,"2-ҳисоб гуруҳи"]
[null,"3-ҳисоб гуруҳи"]
[null,"4-ҳисоб гуруҳи"]
[null,"Қайта суғурталовчиларнинг ИМЗдаги улуши"]
[null,"Хабар қилинган, лекин бартараф этилмаган зарарлар захираси (жами), шу жумладан:"]
[null,"ФЖМС бўйича ХЗЗ"]
[null,"ИФЖМС бўйича ХЗЗ"]
[null,"ТФЖМС бўйича ХЗЗ"]
[null,"Қайта суғурталовчиларнинг ХЗЗдаги улуши"]
[null,"Содир бўлган, лекин хабар қилинмаган зарарлар захираси (жами), шу жумладан:"]
[null,"ФЖМС бўйича СХЗЗ"]
[null,"ИФЖМС бўйича СХЗЗ"]
[null,"ТФЖМС бўйича СХЗЗ"]
[null,"Қайта суғурталовчиларнинг СХЗЗдаги улуши"]
[null,"Транспорт воситалари эгаларининг фуқаролик жавобгарлигини мажбурий суғурта қилиш бўйича барқарорлаштириш захираси (ФЖМС БЗ)"]
[null,"Иш берувчининг фуқаролик жавобгарлигини мажбурий суғурта қилиш бўйича барқарорлаштириш захираси (ИФЖМС БЗ)"]
[null,"Ташувчининг фуқаролик жавобгарлигини мажбурий суғурта қилиш бўйича барқарорлаштириш захираси (ТФЖМС БЗ)"]
[null,"Мукофотлар захираси (жами)"]
[null,"жумладан, ҳаётни суғурта қилишнинг жамғарилиб борувчи турлари бўйича захира"]
[null,"Қайта суғурталовчиларнинг ҲЖЗдаги улуши"]
[null,"Ҳаётни суғурта қилишнинг бошқа турлари (жамғарилиб борувчи турларидан ташқари) бўйича захира"]
[null,"Қайта суғурталовчиларнинг ҲЗдаги улуши"]
[null,"Қайта суғурталовчиларнинг мукофотлар захирасидаги улуши"]
[null,"Техник захираларнинг умумий миқдори"]
[null,"Қайта суғурталовчиларнинг техник захираларда умумий улуши"]
[null,"Огоҳлантириш чора-тадбирлари захираси (жами), шу жумладан:"]
[null,"ФЖМС ОЧЗ"]
[null,"ИФЖМС ОЧЗ"]
[null,"ТФЖМС ОЧЗ"]
[null,"Суғуртанинг бошқа турлари бўйича ОЧЗ"]
[null,"Бошқа суғурта захиралари"]
[null,"..."]
[null,"Суғурта захираларининг умумий миқдори"]
[null,"Қайта суғурталовчиларнинг суғурта захираларидаги умумий улуши"]

{"sheet":"1882_5_uz","index":17,"n_rows":45,"n_cols":8,"rows_kept":45,"hidden":true,"merged":[[6,1,7,2],[6,3,6,4],[6,5,6,7],[8,1,8,2],[9,1,9,2],[10,1,10,2],[11,1,11,2],[12,1,12,2],[13,1,13,2],[14,1,14,2],[15,1,15,2],[16,1,16,2],[17,1,17,2],[18,1,18,2],[19,1,19,2],[20,1,20,2],[21,1,21,2],[22,1,22,2],[23,1,23,2],[24,1,24,2],[25,1,25,2],[26,1,26,2],[27,1,27,2],[28,1,28,2],[29,1,29,2],[30,1,30,2],[31,1,31,2],[32,1,32,2],[33,1,33,2],[34,1,34,2],[35,1,35,2],[36,1,36,2],[37,1,37,2],[38,1,38,2],[39,1,39,2],[40,1,40,2],[41,1,41,2],[42,1,42,2],[43,1,43,2],[44,1,44,2]]}
[null,"Қайд рақами",{"$f":"VLOOKUP($C$5,Жадваллар!$A:$E,2,FALSE)","v":1882},"Жадваллар рўйхати"]
[null,"Ҳужжат номи",{"$f":"VLOOKUP($C$5,Жадваллар!$A:$E,3,FALSE)","v":"Суғурталовчиларнинг суғурта захиралари тўғрисидаги низом"}]
[null,"Илова рақами",{"$f":"VLOOKUP($C$5,Жадваллар!$A:$E,4,FALSE)","v":5}]
[null,"Илова номи",{"$f":"VLOOKUP($C$5,Жадваллар!$A:$E,5,FALSE)","v":"Активлар таркиби тўғрисида маълумот"}]
[null,"Илова коди","1882_5"]
[]
[null,"Активлар",null,"Жами активлар",null,"Улардан ажратилган активлар"]
[{"$nulls":3},"Ўзбекистон Республикаси ҳудудида","Ўзбекистон Республикаси ҳудудидан ташқарида","Ўзбекистон Республикаси ҳудудида","Ўзбекистон Республикаси ҳудудидан ташқарида","жами (минг сўм экв.)"]
[null,"Асосий воситалар"]
[null,"Улардан, кўчмас мулк "]
[null,"Номоддий активлар "]
[null,"Инвестициялар, жами "]
[null,"Тижорат банкларидаги депозитлар (банк омонатлари) "]
[null,"Кредит ташкилотларидаги депозитлар (тижорат банкларидан ташқари)"]
[null,"Ходимларга берилган қарзлар, (боғлиқ шахслар ҳисобланувчи ходимлардан ташқари) "]
[null,"Суғурталовчининг боғлиқ шахслари ҳисобланмайдиган таъсисчилари ва акциядорларига қарзлар"]
[null,"Боғлиқ шахсларга берилган қарзлар"]
[null,"Бошқа қарзлар "]
[null,"Шўъба корхоналарига қўйилмалар "]
[null,"Боғлиқ шахсларга қўйилмалар "]
[null,"Давлат қимматли қоғозлари "]
[null,"Акциялар "]
[null,"Облигациялар "]
[null,"Бошқа қимматли қоғозлар "]
[null,"Бошқа инвестициялар "]
[null,"Пул маблағлари, жами "]
[null,"Ҳисоб рақамидаги пул маблағлари "]
[null,"Кассадаги пул маблағлари "]
[null,"Хорижий валютадаги пул маблағлари "]
[null,"Бошқа пул маблағлари ва эквивалентлар"]
[null,"Бошқа айланма активлар, жами "]
[null,"Ишлаб чиқариш захиралари (материаллар)"]
[null,"Тугалланмаган ишлаб чиқариш (хизматлар)"]
[null,"Сотиб олинган хусусий акциялар "]
[null,"Дебиторлик қарзлар, жами"]
[null,"Суғурта қилдирувчилар билан ҳисоб-китоблар "]
[null,"Қайта суғурталовчилар билан ҳисоб-китоблар "]
[null,"Бўнак тўловлари "]
[null,"Таъсисчилар билан ҳисоб-китоблар "]
[null,"Бюджет билан ҳисоб-китоблар "]
[null,"Бошқалар "]
[null,"Бошқа активлар, жами "]
[null,"Бошқа активлар (кўрсатинг) "]
[null,"… "]
[null,"ЖАМИ АКТИВЛАР "]

{"sheet":"1945_1_uz","index":18,"n_rows":146,"n_cols":8,"rows_kept":146,"hidden":true,"merged":[[0,2,0,6],[1,2,1,6],[2,2,2,6],[3,2,3,6],[4,2,4,6],[6,1,6,3],[7,1,7,3],[8,1,8,3],[9,1,9,3],[10,1,10,3],[11,1,11,3],[12,1,12,3],[13,1,13,3],[14,1,14,3],[15,1,15,3],[16,1,16,3],[17,1,17,3],[18,1,18,3],[19,1,19,3],[20,1,20,3],[21,1,21,3],[22,1,22,3],[23,1,23,3],[24,1,24,3],[25,1,25,3],[26,1,26,3],[27,1,27,3],[28,1,28,3],[29,1,29,3],[30,1,30,3],[31,1,31,3],[32,1,32,3],[33,1,33,3],[34,1,34,3],[35,1,35,3],[36,1,36,3],[37,1,37,3],[38,1,38,3],[39,1,39,3],[40,1,40,3],[41,1,41,3],[42,1,42,3],[43,1,43,3],[44,1,44,3],[45,1,45,3],[46,1,46,3],[47,1,47,3],[48,1,48,3],[49,1,49,3],[50,1,50,3],[51,1,51,3],[52,1,52,3],[53,1,53,3],[54,1,54,3],[55,1,55,3],[56,1,56,3],[57,1,57,3],[58,1,58,3],[59,1,59,3],[60,1,60,3],[61,1,61,3],[62,1,62,3],[63,1,63,3],[64,1,64,3],[65,1,65,3],[66,1,66,3],[67,1,67,3],[68,1,68,3],[69,1,69,3],[70,1,70,3],[71,1,71,3],[72,1,72,3],[73,1,73,3],[74,1,74,3],[75,1,75,3],[76,1,76,3],[77,1,77,3],[78,1,78,3],[79,1,79,3],[80,1,80,3],[81,1,81,3],[82,1,82,3],[83,1,83,3],[84,1,84,3],[85,1,85,3],[86,1,86,3],[87,1,87,3],[88,1,88,3],[89,1,89,3],[90,1,90,3],[91,1,91,3],[92,1,92,3],[93,1,93,3],[94,1,94,3],[95,1,95,3],[96,1,96,3],[97,1,97,3],[98,1,98,3],[99,1,99,3],[100,1,100,3],[101,1,101,3],[102,1,102,3],[103,1,103,3],[104,1,104,3],[105,1,105,3],[106,1,106,3],[107,1,107,3],[108,1,108,3],[109,1,109,3],[110,1,110,3],[111,1,111,3],[112,1,112,3],[113,1,113,3],[114,1,114,3],[115,1,115,3],[116,1,116,3],[117,1,117,3],[118,1,118,3],[119,1,119,3],[120,1,120,3],[121,1,121,3],[122,1,122,3],[123,1,123,3],[124,1,124,3],[125,1,125,3],[126,1,126,3],[127,1,127,3],[128,1,128,3],[129,1,129,3],[130,1,130,3],[131,1,131,3],[132,1,132,3],[133,1,133,3],[134,1,134,3],[135,1,135,3],[136,1,136,3],[137,1,137,3],[138,1,138,3],[139,1,139,3],[140,1,140,3],[141,1,141,3],[142,1,142,3],[143,1,143,3],[145,1,147,6]]}
[null,"Қайд рақами",{"$f":"VLOOKUP($C$5,Жадваллар!$A:$E,2,FALSE)","v":1945},{"$nulls":4},"Жадваллар рўйхати"]
[null,"Ҳужжат номи",{"$f":"VLOOKUP($C$5,Жадваллар!$A:$E,3,FALSE)","v":"Суғурталовчиларнинг молиявий ҳисобот шаклларини ва уларни тўлдириш бўйича қоидаларни тасдиқлаш тўғрисидаги Молия вазирлиги буйруғи"}]
[null,"Илова рақами",{"$f":"VLOOKUP($C$5,Жадваллар!$A:$E,4,FALSE)","v":1}]
[null,"Илова номи",{"$f":"VLOOKUP($C$5,Жадваллар!$A:$E,5,FALSE)","v":"Бухгалтерия баланси — 1-сонли шакл — суғурта"}]
[null,"Илова коди","1945_1"]
[]
[null,"Кўрсаткичлар номи",null,null,"Сатр коди","Ҳисобот даври бошига","Ҳисобот даври охирига "]
[null,"Актив"]
[null,"I. Узоқ муддатли активлар"]
[null,"Асосий воситалар:"]
[null,"Бошланғич (қайта тиклаш) қиймати (0100, 0300)",null,null,10]
[null,"Эскириш суммаси (0200)",null,null,11]
[null,"Қолдиқ (баланс) қиймати (сатр. 010 — 011)",null,null,12]
[null,"Номоддий активлар:"]
[null,"Бошланғич қиймати (0400)",null,null,20]
[null,"Амортизация суммаси (0500)",null,null,21]
[null,"Қолдиқ (баланс) қиймати (сатр. 020 — 021)",null,null,22]
[null,"Узоқ муддатли инвестициялар, жами (сатр.040 + 050 + 060 + 070 + 080), шу жумладан:",null,null,30]
[null,"Қимматли қоғозлар (0610)",null,null,40]
[null,"Шўъба хўжалик жамиятларига инвестициялар (0620)",null,null,50]
[null,"Қарам хўжалик жамиятларига инвестициялар (0630)",null,null,60]
[null,"Чет эл капитали мавжуд бўлган корхоналарга инвестициялар (0640)",null,null,70]
[null,"Бошқа узоқ муддатли инвестициялар (0690)",null,null,80]
[null,"Ўрнатиладиган асбоб-ускуналар (0700)",null,null,90]
[null,"Капитал қўйилмалар (0800)",null,null,100]
[null,"Узоқ муддатли дебиторлик қарзлари (0910, 0920, 0930, 0940)",null,null,110]
[null,"Узоқ муддатли кечиктирилган харажатлар (0950, 0960, 0990)",null,null,120]
[null,"I бўлим бўйича жами (сатр. 012 + 022 + 030 + 090 + 100 + 110 + 120)",null,null,130]
[null,"II. Жорий активлар"]
[null,"Товар-моддий захиралари, жами (сатр.150 + 160), шу жумладан:",null,null,140]
[null,"Материаллар (1000, 1500, 1600)",null,null,150]
[null,"Тугалланмаган хизматлар (2000, 2300, 2700)",null,null,160]
[null,"Келгуси давр харажатлари (3100)",null,null,170]
[null,"Кечиктирилган харажатлар (3200)",null,null,180]
[null,"Дебиторлар, жами (сатр. 200 + 310 + 320 + 330 + 340 + 350 + 360 + 370 + 38 0+ 390)",null,null,190]
[null,"шундан: муддати ўтган*",null,null,191]
[null,"Тўланадиган счётлар, жами (сатр. 210 + 220 - 400)",null,null,200]
[null,"Харидорлар ва буюртмачиларнинг қарзи (4010, 4020)",null,null,210]
[null,"Суғурта операциялари бўйича дебиторлар, жами (сатр. 230 + 240 + 250 + 260 + 270 + 280 + 290 + 300)",null,null,220]
[null,"Суғурта қилдирувчиларнинг қарзлари (4030)",null,null,230]
[null,"Суғурта агентлари ва брокерларининг қарзлари (4040)",null,null,240]
[null,"Қайта суғурта қилдирувчиларнинг қарзлари (4050)",null,null,250]
[null,"Қайта суғурталовчиларнинг комиссион мукофотлар, тантьема ва бошқа мукофотлар бўйича қарзлари (4051)",null,null,260]
[null,"Қайта суғурталовчиларнинг қарзлари (4060)",null,null,270]
[null,"Ҳаёт суғуртаси бўйича ссудалар (4070)",null,null,280]
[null,"Суғурталовчининг бошқа суғурталовчилардаги депо зарари (4080)",null,null,290]
[null,"Суғурталовчининг бошқа суғурталовчилардаги депо мукофотлари (4090)",null,null,300]
[null,"Алоҳида бўлинмаларнинг қарзи (4110)",null,null,310]
[null,"Шўъба ва қарам хўжалик жамиятларининг қарзи (4120)",null,null,320]
[null,"Ходимларга берилган бўнаклар (4200)",null,null,330]
[null,"Мол етказиб берувчилар ва пудратчиларга берилган бўнаклар (4300)",null,null,340]
[null,"Бюджетга бўнак тўловлари (4400)",null,null,350]
[null,"Мақсадли давлат жамғармалари ва суғурталар бўйича бўнак тўловлари (4500)",null,null,360]
[null,"Таъсисчиларнинг устав капиталига улушлар бўйича қарзи (4600)",null,null,370]
[null,"Ходимларнинг бошқа операциялар бўйича қарзи (4700)",null,null,380]
[null,"Бошқа дебиторлик қарзлари (4800)",null,null,390]
[null,"Ишончсиз қарзлар бўйича резерв (4900)",null,null,400]
[null,"Пул маблағлари, жами (сатр.420 + 430 + 440 + 450), шу жумладан:",null,null,410]
[null,"Кассадаги пул маблағлари (5000)",null,null,420]
[null,"Ҳисоб-китоб счётидаги пул маблағлари (5100)",null,null,430]
[null,"Чет эл валютасидаги пул маблағлари (5200)",null,null,440]
[null,"Бошқа пул маблағлари ва эквивалентлари (5500, 5600, 5700)",null,null,450]
[null,"Қисқа муддатли инвестициялар (5800)",null,null,460]
[null,"Бошқа жорий активлар (5900)",null,null,470]
[null,"II бўлим бўйича жами (сатр. 140 + 170 + 180 + 190 + 410 + 460 + 470).",null,null,480]
[null,"Баланс активи бўйича жами (сатр.130 + 480)",null,null,490]
[null,"Пассив"]
[null,"I. Ўз маблағлари манбалари "]
[null,"Устав капитали (8300)",null,null,500]
[null,"Қўшилган капитал (8400)",null,null,510]
[null,"Захира капитали (8500)",null,null,520]
[null,"Сотиб олинган хусусий акциялар (8600)",null,null,530]
[null,"Тақсимланмаган фойда (қопланмаган зарар) (8700)",null,null,540]
[null,"Мақсадли тушумлар (8800)",null,null,550]
[null,"Келгуси давр харажатлари ва тўловлари учун захиралар (8900)",null,null,560]
[null,"I бўлим бўйича жами (сатр. 500 + 510 + 520 - 530 + 540 + 550 + 560)",null,null,570]
[null,"II. Суғурта захиралари"]
[null,"Суғурта захиралари, жами (сатр. 590 + 600 + 610 + 620 + 630 + 640 + 650 + 660)",null,null,580]
[null,"Ишлаб топилмаган мукофотлар захираси (8010)",null,null,590]
[null,"Содир бўлган, лекин хабар қилинмаган зарарлар захираси (8020)",null,null,600]
[null,"Хабар қилинган, лекин бартараф этилмаган зарарлар захираси (8030)",null,null,610]
[null,"Огоҳлантириш чора -тадбирлари захираси (8040)",null,null,620]
[null,"Активларнинг номувофиқлиги захираси (8050)",null,null,630]
[null,"Фалокатлар захираси (8060)",null,null,640]
[null,"Зарарлиликнинг тебраниши захираси (8070)",null,null,650]
[null,"Ҳаёт суғуртаси бўйича захиралар (8090)",null,null,660]
[null,"Қайта суғурталовчиларнинг суғурта захираларидаги улуши, жами (сатр. 680 + 690 + 700 + 710)",null,null,670]
[null,"Ишлаб топилмаган мукофотлар захирасидаги қайта суғурталовчиларнинг улуши (8110)",null,null,680]
[null,"Хабар қилинган, лекин бартараф этилмаган зарарлар захирасидаги қайта суғурталовчиларнинг улуши (8120)",null,null,690]
[null,"Содир бўлган, лекин хабар қилинмаган зарарлар захирасидаги қайта суғурталовчиларнинг улуши (8130)",null,null,700]
[null,"Ҳаёт суғуртаси бўйича захиралардаги қайта суғурталовчиларнинг улуши (8140)",null,null,710]
[null,"II бўлим бўйича жами (сатр.580 - 670)",null,null,720]
[null,"III. Мажбуриятлар"]
[null,"Узоқ муддатли мажбуриятлар, жами (сатр. 740 + 750 + 850 + 860 + 870 + 880 + 890 + 900 + 910 + 920)",null,null,730]
[null,"шу жумладан: узоқ муддатли кредиторлик қарзлари (сатр.740 + 760 + 770 + 780 + 790 + 800 + 820 + 830 + 850 + 870 + 890 + 920)",null,null,731]
[null,"Мол етказиб берувчилар ва пудратчиларга узоқ муддатли қарз (7010, 7020)",null,null,740]
[null,"Суғурта операциялари бўйича узоқ муддатли мажбуриятлар, жами (сатр. 760 + 770 + 780 + 790 + 800 + 810 + 820 + 830)",null,null,750]
[null,"Огоҳлантириш чора -тадбирларини амалга оширувчи пудратчиларга узоқ муддатли қарзлар (7011)",null,null,760]
[null,"Суғурта қилдирувчиларга узоқ муддатли қарзлар (7030)",null,null,770]
[null,"Суғурта агентлари ва брокерларига узоқ муддатли қарзлар (7040)",null,null,780]
[null,"Қайта суғурта қилдирувчиларга узоқ муддатли қарзлар (7050)",null,null,790]
[null,"Қайта суғурталовчиларга узоқ муддатли қарзлар (7060)",null,null,800]
[null,"Қайта суғурталовчиларнинг депо мукофотлари (7070)",null,null,810]
[null,"Қайта суғурта қилдирувчиларга комиссион мукофотлар, тантьема ва бошқа мукофотлар бўйича узоқ муддатли қарзлар (7080)",null,null,820]
[null,"Актуарийлар, аджастерлар, сюрвейерлар ва ассистансларга узоқ муддатли қарзлар (7090)",null,null,830]
[null,"Алоҳида бўлинмаларга узоқ муддатли қарз (7110)",null,null,840]
[null,"Шўъба ва қарам хўжалик жамиятларга узоқ муддатли қарз (7120)",null,null,850]
[null,"Узоқ муддатли кечиктирилган даромадлар (7210, 7220, 7230)",null,null,860]
[null,"Солиқ ва бошқа мажбурий тўловлар бўйича узоқ муддатли кечиктирилган мажбуриятлар (7240)",null,null,870]
[null,"Бошқа узоқ муддатли кечиктирилган мажбуриятлар (7250, 7290)",null,null,880]
[null,"Харидорлар ва буюртмачилардан олинган бўнаклар (7300)",null,null,890]
[null,"Узоқ муддатли банк кредитлари (7810)",null,null,900]
[null,"Узоқ муддатли қарзлар (7820, 7830, 7840)",null,null,910]
[null,"Бошқа узоқ муддатли кредиторлик қарзлар (7900)",null,null,920]
[null,"Жорий мажбуриятлар, жами (сатр. 940 + 950 +1050 + 1060 + 1070 + 1080 + 1090 + 1100 + 1110 + 1120 +1130 + 1140 + 1150 + 1160 + 1170 + 1180)",null,null,930]
[null,"шу жумладан: жорий кредиторлик қарзлари (сатр. 940 + 960 + 970 + 980 + 990 + 1000 + 1020 + 1030 + 1050 + 1070 + 1090 + 1100 +1110 + 1120 + 1130 + 1140 + 1180)",null,null,931]
[null,"шундан: муддати ўтган жорий кредиторлик қарзлари*",null,null,932]
[null,"Мол етказиб берувчилар ва пудратчиларга қарз (6010, 6020)",null,null,940]
[null,"Суғурта операциялари бўйича мажбуриятлар, жами (сатр. 960 + 970 + 980 + 990 + 1000 + 1010 + 1020 + 1030)",null,null,950]
[null,"Огоҳлантириш чора -тадбирларини амалга оширувчи пудратчиларга қарзлар (6011) ",null,null,960]
[null,"Суғурта қилдирувчиларга қарзлар (6030)",null,null,970]
[null,"Суғурта агентлари ва брокерларига қарзлар (6040)",null,null,980]
[null,"Қайта суғурта қилдирувчиларга қарзлар (6050)",null,null,990]
[null,"Қайта суғурталовчиларга қарзлар (6060)",null,null,1000]
[null,"Қайта суғурталовчиларнинг депо мукофотлари (6070)",null,null,1010]
[null,"Қайта суғурта қилдирувчиларга комиссион мукофотлар, тантъема ва бошқа мукофотлар бўйича қарзлари (6080)",null,null,1020]
[null,"Актуарийлар, аджастерлар, сюрвейерлар ва ассистансларга қарзлар (6090)",null,null,1030]
[null,"Алоҳида бўлинмаларга қарз (6110)",null,null,1040]
[null,"Шўъба ва қарам хўжалик жамиятларига қарз (6120)",null,null,1050]
[null,"Кечиктирилган даромадлар (6210, 6220, 6230)",null,null,1060]
[null,"Солиқлар ва бошқа мажбурий тўловлар бўйича кечиктирилган мажбуриятлар (6240)",null,null,1070]
[null,"Бошқа кечиктирилган мажбуриятлар (6250, 6290)",null,null,1080]
[null,"Олинган бўнаклар (6300)",null,null,1090]
[null,"Бюджетга тўловлар бўйича қарз (6400)",null,null,1100]
[null,"Суғурта бўйича қарз (6510)",null,null,1110]
[null,"Мақсадли давлат жамғармаларига тўловлар бўйича қарз (6520)",null,null,1120]
[null,"Таъсисчиларга бўлган қарзлар (6600)",null,null,1130]
[null,"Меҳнатга ҳақ тўлаш бўйича қарз (6700)",null,null,1140]
[null,"Қисқа муддатли банк кредитлари (6810)",null,null,1150]
[null,"Қисқа муддатли қарзлар (6820, 6830, 6840)",null,null,1160]
[null,"Узоқ муддатли мажбуриятларнинг жорий қисми (6950)",null,null,1170]
[null,"Бошқа кредиторлик қарзлар (6950 дан ташқари 6900)",null,null,1180]
[null,"III бўлим бўйича жами (сатр.730 + 930)",null,null,1190]
[null,"Баланс пассиви бўйича жами (сатр.570 + 720 + 1190)",null,null,1200]
[]
[null,"* Муддати ўтган дебиторлик ва кредиторлик қарзлари мавжуд бўлган ҳолларда уларнинг расшифровкаси Бухгалтерия баланси — 1-сонли шакл — суғуртанинг иловасига мувофиқ келтирилади. "]

{"sheet":"1945_2_uz","index":19,"n_rows":23,"n_cols":7,"rows_kept":23,"hidden":true,"merged":[[0,2,0,4],[1,2,1,4],[2,2,2,4],[3,2,3,4],[4,2,4,4],[6,1,6,3],[7,1,7,3],[8,1,8,3],[9,1,9,3],[10,1,10,3],[11,1,11,3],[12,1,12,3],[13,1,13,3],[14,1,14,3],[15,1,15,3],[16,1,16,3],[17,1,17,3],[18,1,18,3],[19,1,19,3],[20,1,20,3],[22,1,24,6]]}
[null,"Қайд рақами",{"$f":"VLOOKUP($C$5,Жадваллар!$A:$E,2,FALSE)","v":1945},null,null,"Жадваллар рўйхати"]
[null,"Ҳужжат номи",{"$f":"VLOOKUP($C$5,Жадваллар!$A:$E,3,FALSE)","v":"Суғурталовчиларнинг молиявий ҳисобот шаклларини ва уларни тўлдириш бўйича қоидаларни тасдиқлаш тўғрисидаги Молия вазирлиги буйруғи"}]
[null,"Илова рақами",{"$f":"VLOOKUP($C$5,Жадваллар!$A:$E,4,FALSE)","v":2}]
[null,"Илова номи",{"$f":"VLOOKUP($C$5,Жадваллар!$A:$E,5,FALSE)","v":"Балансдан ташқари счётларда ҳисобга олинадиган қийматликларнинг мавжудлиги тўғрисида маълумотнома"}]
[null,"Илова коди","1945_2"]
[]
[null,"Кўрсаткичлар номи",null,null,"Сатр коди ","Ҳисобот даври бошига","Ҳисобот даври охирига "]
[null,"Қисқа муддатли ижарага олинган асосий воситалар (001)",null,null,1210]
[null,"Масъул сақлашга қабул қилинган товар-моддий қийматликлар (002)",null,null,1220]
[null,"Қайта ишлашга қабул қилинган материаллар (003)",null,null,1230]
[null,"Комиссияга қабул қилинган товарлар (004)",null,null,1240]
[null,"Ўрнатиш учун қабул қилинган асбоб-ускуналар (005)",null,null,1250]
[null,"Қатъий ҳисобот бланкалари (006)",null,null,1260]
[null,"Тўловга қобилиятсиз дебиторларнинг зарарга ҳисобдан чиқарилган қарзи (007)",null,null,1270]
[null,"Олинган мажбуриятлар ва тўловларнинг таъминоти (008)",null,null,1280]
[null,"Берилган мажбуриятлар ва тўловларнинг таъминоти (009)",null,null,1290]
[null,"Узоқ муддатли ижара шартномасига асосан берилган асосий воситалар (010)",null,null,1300]
[null,"Ссуда шартномаси бўйича олинган мулк (011)",null,null,1310]
[null,"Келгуси даврларда солиқ солинадиган базадан чиқариладиган харажатлар (012)",null,null,1320]
[null,"Вақтинчалик солиқ имтиёзлари (турлари бўйича) (013)",null,null,1330]
[null,"Фойдаланишдаги инвентарь ва хўжалик жиҳозлари (014)",null,null,1340]
[]
[null,"* Муддати ўтган дебиторлик ва кредиторлик қарзлари мавжуд бўлган ҳолларда уларнинг расшифровкаси Бухгалтерия баланси — 1-сонли шакл — суғуртанинг иловасига мувофиқ келтирилади. "]

{"sheet":"1945_3_uz","index":20,"n_rows":49,"n_cols":9,"rows_kept":49,"hidden":true,"merged":[[0,2,0,6],[1,2,1,6],[2,2,2,6],[3,2,3,6],[4,2,4,6],[6,1,7,3],[6,4,7,4],[6,5,6,6],[6,7,6,8],[8,1,8,3],[9,1,9,3],[10,1,10,3],[11,1,11,3],[12,1,12,3],[13,1,13,3],[14,1,14,3],[15,1,15,3],[16,1,16,3],[17,1,17,3],[18,1,18,3],[19,1,19,3],[20,1,20,3],[21,1,21,3],[22,1,22,3],[23,1,23,3],[24,1,24,3],[25,1,25,3],[26,1,26,3],[27,1,27,3],[28,1,28,3],[29,1,29,3],[30,1,30,3],[31,1,31,3],[32,1,32,3],[33,1,33,3],[34,1,34,3],[35,1,35,3],[36,1,36,3],[37,1,37,3],[38,1,38,3],[39,1,39,3],[40,1,40,3],[41,1,41,3],[42,1,42,3],[43,1,43,3],[44,1,44,3],[45,1,45,3],[46,1,46,3],[47,1,47,3],[48,1,48,3]]}
[null,"Қайд рақами",{"$f":"VLOOKUP($C$5,Жадваллар!$A:$E,2,FALSE)","v":1945},{"$nulls":4},"Жадваллар рўйхати"]
[null,"Ҳужжат номи",{"$f":"VLOOKUP($C$5,Жадваллар!$A:$E,3,FALSE)","v":"Суғурталовчиларнинг молиявий ҳисобот шаклларини ва уларни тўлдириш бўйича қоидаларни тасдиқлаш тўғрисидаги Молия вазирлиги буйруғи"}]
[null,"Илова рақами",{"$f":"VLOOKUP($C$5,Жадваллар!$A:$E,4,FALSE)","v":3}]
[null,"Илова номи",{"$f":"VLOOKUP($C$5,Жадваллар!$A:$E,5,FALSE)","v":"Молиявий натижалар тўғрисидаги ҳисобот — 2-сонли шакл — суғурта"}]
[null,"Илова коди","1945_3"]
[]
[null,"Кўрсаткичлар номи",null,null,"Сатр коди","Ўтган йилнинг шу даврида",null,"Ҳисобот даврида"]
[{"$nulls":5},"Даромад лар (фойда)","Харажат лар (зарарлар) ","Даромад лар (фойда)","Харажат лар (зарарлар)"]
[null,"Суғурта хизматларини кўрсатишдан даромадлар, (сатр.011-012+013+/-014+/-015+/-016+/-017+/-018+019), шу жумладан:",null,null,10]
[null,"Тўғридан-тўғри суғурта қилиш ва биргаликда суғурта қилиш бўйича (биргаликда суғурта қилиш шартномасида суғурталовчининг белгиланган улуши қисмида) суғурта мукофотлари",null,null,11]
[null,"Қайта суғурта қилишга берилган шартномалар бўйича суғурта мукофотлари",null,null,12]
[null,"Қайта суғурта қилишга қабул қилинган шартномалар бўйича суғурта мукофотлари",null,null,13]
[null,"Ишлаб топилмаган мукофотлар захирасидаги қайта суғурталовчиларнинг улушини ҳисобга олган ҳолдаги, ишлаб топилмаган мукофотлар захираси ўзгаришининг натижаси",null,null,14]
[null,"Хабар қилинган, лекин бартараф этилмаган зарарлар захирасидаги қайта суғурталовчиларнинг улушини ҳисобга олган ҳолдаги, хабар қилинган, лекин бартараф этилмаган зарарлар захираси ўзгаришининг натижаси",null,null,15]
[null,"Содир бўлган, лекин хабар қилинмаган зарарлар захирасидаги қайта суғурталовчиларнинг улушини ҳисобга олган ҳолдаги, содир бўлган, лекин хабар қилинмаган зарарлар захираси ўзгаришининг натижаси",null,null,16]
[null,"Ҳаёт суғуртаси бўйича захиралардаги қайта суғурталовчиларнинг улушини ҳисобга олган ҳолдаги, ҳаёт суғуртаси бўйича захиралар ўзгаришининг натижаси",null,null,17]
[null,"Бошқа техник захиралардаги қайта суғурталовчиларнинг улушини ҳисобга олган ҳолдаги, тегишли захиралар ўзгаришининг натижаси",null,null,18]
[null,"Суғурта хизматларини кўрсатишдан бошқа даромадлар",null,null,19]
[null,"Воситачилик хизматини кўрсатишдан даромадлар",null,null,20]
[null,"Қайта суғурта бўйича зарарлар улушининг қопланиши бўйича даромадлар",null,null,30]
[null,"Қайта суғурта бўйича комиссион мукофотлар, тантьемалар ва йиғимлар бўйича даромадлар",null,null,40]
[null,"Аджастер ва сюрвейер хизматларини кўрсатишдан олинган даромадлар",null,null,50]
[null,"Суғурта хизматларини кўрсатишдан соф тушум (сатр. 010+020+030+040+050)",null,null,60]
[null,"Кўрсатилган суғурта хизматларининг таннархи",null,null,70]
[null,"Суғурта хизматларини кўрсатишдан ялпи фойда (зарар) (сатр.060-070)",null,null,80]
[null,"Давр харажатлари, жами (сатр.100+110+120+130), шу жумладан:",null,null,90]
[null,"Сотиш харажатлари",null,null,100]
[null,"Маъмурий харажатлар",null,null,110]
[null,"Бошқа операцион харажатлар",null,null,120]
[null,"Келгусида солиққа тортиладиган базадан чиқариладиган ҳисобот даври харажатлари",null,null,130]
[null,"Асосий фаолиятнинг бошқа даромадлари",null,null,140]
[null,"Асосий фаолиятнинг фойдаси (зарари) (сатр.080-090+140)",null,null,150]
[null,"Молиявий фаолиятнинг даромадлари, жами (сатр.170+180+190+200+210), шу жумладан:",null,null,160]
[null,"Дивидендлар кўринишидаги даромадлар",null,null,170]
[null,"Фоизлар кўринишидаги даромадлар",null,null,180]
[null,"Узоқ муддатли ижара (лизинг) дан даромадлар",null,null,190]
[null,"Валюта курси фарқларидан даромадлар",null,null,200]
[null,"Молиявий фаолиятнинг бошқа даромадлари",null,null,210]
[null,"Молиявий фаолият бўйича харажатлар, жами (сатр.230+240+250+260), шу жумладан:",null,null,220]
[null,"Фоизлар кўринишидаги харажатлар",null,null,230]
[null,"Узоқ муддатли ижара (лизинг) бўйича фоизлар кўринишидаги харажатлар",null,null,240]
[null,"Валюта курси фарқларидан зарарлар",null,null,250]
[null,"Молиявий фаолият бўйича бошқа харажатлар",null,null,260]
[null,"Умумхўжалик фаолиятининг фойдаси (зарари) (сатр.150+160-220)",null,null,270]
[null,"Фавқулоддаги фойда ва зарарлар",null,null,280]
[null,"Фойда солиғини тўлагунга қадар фойда (зарар) (сатр.270+/-280)",null,null,290]
[null,"Фойда солиғи",null,null,300]
[null,"Фойдадан бошқа солиқлар ва бошқа мажбурий тўловлар",null,null,310]
[null,"Ҳисобот даврининг соф фойдаси (зарари) (сатр.290-300-310)",null,null,320]

{"sheet":"1945_4_uz","index":21,"n_rows":26,"n_cols":7,"rows_kept":26,"hidden":true,"merged":[[0,2,0,4],[1,2,1,4],[2,2,2,4],[3,2,3,4],[4,2,4,4],[6,1,6,3],[7,1,7,3],[8,1,8,3],[9,1,9,3],[10,1,10,3],[11,1,11,3],[12,1,12,3],[13,1,13,3],[14,1,14,3],[15,1,15,3],[16,1,16,3],[17,1,17,3],[18,1,18,3],[19,1,19,3],[20,1,20,3],[21,1,21,3],[22,1,22,3],[23,1,23,3],[24,1,24,3],[25,1,25,3]]}
[null,"Қайд рақами",{"$f":"VLOOKUP($C$5,Жадваллар!$A:$E,2,FALSE)","v":1945},null,null,"Жадваллар рўйхати"]
[null,"Ҳужжат номи",{"$f":"VLOOKUP($C$5,Жадваллар!$A:$E,3,FALSE)","v":"Суғурталовчиларнинг молиявий ҳисобот шаклларини ва уларни тўлдириш бўйича қоидаларни тасдиқлаш тўғрисидаги Молия вазирлиги буйруғи"}]
[null,"Илова рақами",{"$f":"VLOOKUP($C$5,Жадваллар!$A:$E,4,FALSE)","v":4}]
[null,"Илова номи",{"$f":"VLOOKUP($C$5,Жадваллар!$A:$E,5,FALSE)","v":"Бюджетга тўловлар тўғрисида маълумотнома"}]
[null,"Илова коди","1945_4"]
[]
[null,"Кўрсаткичлар номи",null,null,"Сатр коди","Ҳисобот даври учун ҳисоб-китоб бўйича тўланади","Ҳисобот даври учун ҳисоб-китоб бўйича тўланадигандан ҳақиқатда тўлангани"]
[null,"Юридик шахслардан олинадиган фойда солиғи",null,null,330]
[null,"Жисмоний шахслардан олинадиган даромад солиғи",null,null,340]
[null,"шу жумладан: шахсий жамғариб бориладиган пенсия ҳисобварақларига ажратмалар",null,null,341]
[null,"Қўшилган қиймат солиғи",null,null,360]
[null,"Акциз солиғи",null,null,370]
[null,"Ер қаъридан фойдаланганлик учун солиқ",null,null,380]
[null,"Сув ресурсларидан фойдаланганлик учун солиқ",null,null,390]
[null,"Юридик шахсларнинг мол-мулкига солинадиган солиқ",null,null,400]
[null,"Юридик шахслардан олинадиган ер солиғи",null,null,410]
[null,"Ягона солиқ тўлови",null,null,420]
[null,"Ягона ер солиғи",null,null,430]
[null,"Қатъий белгиланган солиқ",null,null,440]
[null,"Бошқа солиқлар",null,null,450]
[null,"Давлат мақсадли жамғармаларига мажбурий ажратмалар",null,null,460]
[null,"Ягона ижтимоий тўлов",null,null,490]
[null,"Импорт бўйича божхона божи",null,null,500]
[null,"Маҳаллий мажбурий тўловлар",null,null,510]
[null,"Бюджетга тўловларнинг кечиктирилганлиги учун молиявий санкциялар",null,null,520]
[null,"Жами бюджетга тўловлар суммаси (330 дан 520 сатргача 341 сатрдан ташқари)",null,null,530]

{"sheet":"1945_5_uz","index":22,"n_rows":47,"n_cols":7,"rows_kept":47,"hidden":true,"merged":[[0,2,0,4],[1,2,1,4],[2,2,2,4],[3,2,3,4],[4,2,4,4],[6,1,6,3],[7,1,7,3],[8,1,8,3],[9,1,9,3],[10,1,10,3],[11,1,11,3],[12,1,12,3],[13,1,13,3],[14,1,14,3],[15,1,15,3],[16,1,16,3],[17,1,17,3],[18,1,18,3],[19,1,19,3],[20,1,20,3],[21,1,21,3],[22,1,22,3],[23,1,23,3],[24,1,24,3],[25,1,25,3],[26,1,26,3],[27,1,27,3],[28,1,28,3],[29,1,29,3],[30,1,30,3],[31,1,31,3],[32,1,32,3],[33,1,33,3],[34,1,34,3],[35,1,35,3],[36,1,36,3],[37,1,37,3],[38,1,38,3],[39,1,39,3],[40,1,40,3],[41,1,41,3],[42,1,42,3],[43,1,43,3],[44,1,44,3],[45,1,45,3],[46,1,46,3]]}
[null,"Қайд рақами",{"$f":"VLOOKUP($C$5,Жадваллар!$A:$E,2,FALSE)","v":1945},null,null,"Жадваллар рўйхати"]
[null,"Ҳужжат номи",{"$f":"VLOOKUP($C$5,Жадваллар!$A:$E,3,FALSE)","v":"Суғурталовчиларнинг молиявий ҳисобот шаклларини ва уларни тўлдириш бўйича қоидаларни тасдиқлаш тўғрисидаги Молия вазирлиги буйруғи"}]
[null,"Илова рақами",{"$f":"VLOOKUP($C$5,Жадваллар!$A:$E,4,FALSE)","v":5}]
[null,"Илова номи",{"$f":"VLOOKUP($C$5,Жадваллар!$A:$E,5,FALSE)","v":"Пул оқимлари тўғрисидаги ҳисобот — 4-сонли шакл — суғурта"}]
[null,"Илова коди","1945_5"]
[]
[null,"Кўрсаткичлар номи",null,null,"Сатр коди","Кирим","Чиқим"]
[null,"Операцион фаолият"]
[null,"Суғурта операциялари бўйича пул тушумлари, жами (сатр 020+030+040+050+060), шу жумладан:",null,null,10]
[null,"Суғурта ва биргаликда суғурта қилиш шартномалари бўйича суғурта мукофотлари кўринишида келиб тушган пул маблағлари",null,null,20]
[null,"Қайта суғурта қилиш шартномалари бўйича суғурта мукофотлари кўринишида келиб тушган пул маблағлари",null,null,30]
[null,"Суғурта воситачиси, аджастери, сюрвейери хизматларини кўрсатишдан келиб тушган пул маблағлари",null,null,40]
[null,"Қайта суғурта қилиш бўйича комиссион мукофотлар, тантьемалар ва йиғимлар кўринишида келиб тушган пул маблағлари",null,null,50]
[null,"Қайта суғурта қилиш ва ретроцессияга берилган таваккалчиликлар бўйича зарарлар улушини қоплаш бўйича келиб тушган пул маблағлари",null,null,60]
[null,"Суғурта операциялари бўйича пул тўловлари, жами (сатр 080+090+100+110+120+130), шу жумладан:",null,null,70]
[null,"Қайта суғурта ва ретроцессия шартномалари бўйича суғурта мукофотлари кўринишида тўланган пул маблағлари",null,null,80]
[null,"Суғурта ва биргаликда суғурта қилиш шартномалари бўйича суғурта товонлари кўринишида тўланган пул маблағлари",null,null,90]
[null,"Қайта суғурта қилиш ва ретроцессия бўйича қабул қилинган таваккалчиликлар бўйича зарарлар улушини қоплаш кўринишида тўланган пул маблағлари",null,null,100]
[null,"Суғурта воситачиларига суғурта, биргаликда суғурта қилиш ва қайта суғурта қилиш шартномаларини тузганлик учун мукофотлар кўринишида тўланган пул маблағлари",null,null,110]
[null,"Актуарийлар, аджастерлар, сюрвейерлар, ассистанслар томонидан кўрсатилган хизматлар учун тўланган пул маблағлари",null,null,120]
[null,"Огоҳлантириш чора - тадбирларини молиялаштиришга тўланган пул маблағлари",null,null,130]
[null,"Ходимларга ва улар номидан тўланган пул маблағлари",null,null,140]
[null,"Операцион фаолиятнинг бошқа пул тушумлари ва тўловлари",null,null,150]
[null,"Жами: операцион фаолиятнинг соф пул кирими/чиқими (сатр. 010-070-140+/-150)",null,null,160]
[null,"Инвестиция фаолияти "]
[null,"Асосий воситаларни сотиб олиш ва сотиш",null,null,170]
[null,"Номоддий активларни сотиб олиш ва сотиш",null,null,180]
[null,"Узоқ ва қиска муддатли инвестицияларни сотиб олиш ва сотиш",null,null,190]
[null,"Инвестицион фаолиятнинг бошқа пул тушумлари ва тўловлари",null,null,200]
[null,"Жами: инвестицион фаолиятнинг соф пул кирими/чиқими (сатр. 170+/-180+/-190+/-200)",null,null,210]
[null,"Молиявий фаолият "]
[null,"Олинган ва тўланган фоизлар",null,null,220]
[null,"Олинган ва тўланган дивидендлар",null,null,230]
[null,"Акциялар чиқаришдан ёки хусусий капитал билан боғлиқ бўлган бошқа инструментлардан тушган пул тушумлари",null,null,240]
[null,"Хусусий акцияларни сотиб олганда ва уларни сотганда пул тўловлари ва тушумлари",null,null,250]
[null,"Узоқ ва қисқа муддатли кредит ва қарзлар бўйича пул тушумлари ва тўловлари",null,null,260]
[null,"Узоқ муддатли ижара (лизинг) бўйича пул тушумлари ва тўловлари",null,null,270]
[null,"Молиявий фаолиятнинг бошқа пул тушумлари ва тўловлари",null,null,280]
[null,"Жами: молиявий фаолиятнинг соф пул кирими/чиқими (сатр 220+/-230+240+/-250+/-260+/-270+/-280)",null,null,290]
[null,"Солиққа тортиш "]
[null,"Тўланган фойда солиғи",null,null,300]
[null,"Тўланган бошқа солиқлар",null,null,310]
[null,"Жами: тўланган солиқлар (сатр 300+310)",null,null,320]
[null,"Жами: молиявий-хўжалик фаолиятининг соф пул кирими/чиқими (сатр 160+/-210+/-290-320)",null,null,330]
[null,"Чет эл валютасидаги пул маблағларини қайта баҳолашдан юзага келган курс фарқлари сальдоси.",null,null,331]
[null,"Йил бошидаги пул маблағлари",null,null,340]
[null,"Йил охиридаги пул маблағлари",null,null,350]

{"sheet":"1945_6_uz","index":23,"n_rows":19,"n_cols":6,"rows_kept":19,"hidden":true,"merged":[[0,2,0,4],[1,2,1,4],[2,2,2,4],[3,2,3,4],[4,2,4,4],[6,1,6,3],[7,1,7,3],[8,1,8,3],[9,1,9,3],[10,1,10,3],[11,1,11,3],[12,1,12,3],[13,1,13,3],[14,1,14,3],[15,1,15,3],[16,1,16,3],[17,1,17,3],[18,1,18,3]]}
[null,"Қайд рақами",{"$f":"VLOOKUP($C$5,Жадваллар!$A:$E,2,FALSE)","v":1945},null,null,"Жадваллар рўйхати"]
[null,"Ҳужжат номи",{"$f":"VLOOKUP($C$5,Жадваллар!$A:$E,3,FALSE)","v":"Суғурталовчиларнинг молиявий ҳисобот шаклларини ва уларни тўлдириш бўйича қоидаларни тасдиқлаш тўғрисидаги Молия вазирлиги буйруғи"}]
[null,"Илова рақами",{"$f":"VLOOKUP($C$5,Жадваллар!$A:$E,4,FALSE)","v":6}]
[null,"Илова номи",{"$f":"VLOOKUP($C$5,Жадваллар!$A:$E,5,FALSE)","v":"Чет эл валютасидаги пул маблағларининг ҳаракати тўғрисида маълумотнома"}]
[null,"Илова коди","1945_6"]
[]
[null,"Кўрсаткичлар номи",null,null,"Сатр коди","Миқдори"]
[null,"Йил бошига қолдиқ",null,null,360]
[null,"Келиб тушган валюта маблағлари, жами (сатр 371+372+373+374), шу жумладан",null,null,370]
[null,"Сотишдан олинган тушум",null,null,371]
[null,"Конвертация қилинган",null,null,372]
[null,"Молиявий фаолият бўйича",null,null,373]
[null,"Бошқа манбалар",null,null,374]
[null,"Сарфланган валюта маблағлари, жами (сатр 381+382+383), шу жумладан",null,null,380]
[null,"Мол етказиб берувчилар ва пудратчиларга тўловлар",null,null,381]
[null,"Молиявий фаолият бўйича тўловлар",null,null,382]
[null,"Бошқа мақсадлар учун",null,null,383]
[null,"Чет эл валютасидаги пул маблағларини қайта баҳолашдан юзага келган курс фарқлари сальдоси",null,null,390]
[null,"Йил охиридаги қолдиқ (сатр. 360+370-380+/-390)",null,null,400]

{"sheet":"1945_7_uz","index":24,"n_rows":29,"n_cols":12,"rows_kept":29,"hidden":true,"merged":[[0,2,0,6],[1,2,1,6],[2,2,2,6],[3,2,3,6],[4,2,4,6],[6,1,6,3],[7,1,7,3],[8,1,8,3],[9,1,9,3],[10,1,10,3],[11,1,11,3],[12,1,12,3],[13,1,13,3],[14,1,14,3],[15,1,15,3],[16,1,16,3],[17,1,17,3],[18,1,18,3],[19,1,19,3],[20,1,20,3],[21,1,21,3],[22,1,22,3],[23,1,23,3],[24,1,24,3],[25,1,25,3],[26,1,26,3],[27,1,27,3],[28,1,28,3]]}
[null,"Қайд рақами",{"$f":"VLOOKUP($C$5,Жадваллар!$A:$E,2,FALSE)","v":1945},{"$nulls":4},"Жадваллар рўйхати"]
[null,"Ҳужжат номи",{"$f":"VLOOKUP($C$5,Жадваллар!$A:$E,3,FALSE)","v":"Суғурталовчиларнинг молиявий ҳисобот шаклларини ва уларни тўлдириш бўйича қоидаларни тасдиқлаш тўғрисидаги Молия вазирлиги буйруғи"}]
[null,"Илова рақами",{"$f":"VLOOKUP($C$5,Жадваллар!$A:$E,4,FALSE)","v":7}]
[null,"Илова номи",{"$f":"VLOOKUP($C$5,Жадваллар!$A:$E,5,FALSE)","v":"Хусусий капитал тўғрисидаги ҳисобот — 5-сонли шакл — суғурта"}]
[null,"Илова коди","1945_7"]
[]
[null,"Кўрсаткичлар номи",null,null,"Сатр коди","Устав капитали","Қўшилган капитал","Захира капитали","Тақсимланмаган фойда (қопланмаган зарар)","Сотиб олинган хусусий акциялар","Мақсадли тушумлар ва бошқалар","Жами"]
[null,"Йил бошидаги қолдиқ",null,null,10]
[null,"Қимматли қоғозлар эмиссияси",null,null,20]
[null,"Узоқ муддатли активларни қайта баҳолаш",null,null,30]
[null,"Устав капиталини шакллантиришда пайдо бўлган валюта курси фарқлари",null,null,40]
[null,"Захира капиталига ажратмалар",null,null,50]
[null,"Ҳисобот йилининг тақсимланмаган фойдаси (қопланмаган зарари)",null,null,60]
[null,"Текинга олинган мол-мулк",null,null,70]
[null,"Мақсадли фойдаланиш учун олинган маблағлар",null,null,80]
[null,"Тўланган дивидендлар",null,null,90]
[null,"Хусусий капитал шаклланишининг бошқа манбалари",null,null,100]
[null,"Йил охиридаги қолдиқ",null,null,110]
[null,"Хусусий капиталининг кўпайиши (+) ёки камайиши (-)",null,null,120]
[null,"МАЪЛУМОТ УЧУН:"]
[null,"Чиқарилган акциялар сони, дона",null,null,130]
[null,"шу жумладан:"]
[null,"имтиёзли",null,null,131]
[null,"оддий",null,null,132]
[null,"Акциянинг номинал қиймати",null,null,140]
[null,"Муомаладаги акциялар сони, дона",null,null,150]
[null,"шу жумладан:"]
[null,"имтиёзли",null,null,151]
[null,"оддий",null,null,152]